Workbook

Sheet Information Sheet
A1: Instructions:
C2: Open up Round Sheet
C3: Use set up score card button
D4: Input name and golf course
C5: Play a round of Golf and keep track of scores.
C6: Hit finalize results button
C7: View Results and play another rounnd of GOLF!!!

Sheet ROUND
D1: Gladstan Golf Course
A5: HOLE | D5: 1 | E5: 2 | F5: 3 | G5: 4 | H5: 5 | I5: 6 | J5: 7 | K5: 8 | L5: 9 | M5: OUT | O5: 10 | P5: 11 | Q5: 12 | R5: 13 | S5: 14 | T5: 15 | U5: 16 | V5: 17 | W5: 18 | X5: IN | Y5: TOT | Z5: HANDICAP
A7: PAR | D7: =VLOOKUP(Coursename,courseinfo,94,FALSE) -> 4 | E7: =VLOOKUP(Coursename,courseinfo,95,FALSE) -> 3 | F7: =VLOOKUP(Coursename,courseinfo,96,FALSE) -> 4 | G7: =VLOOKUP(Coursename,courseinfo,97,FALSE) -> 5 | H7: =VLOOKUP(Coursename,courseinfo,98,FALSE) -> 4 | I7: =VLOOKUP(Coursename,courseinfo,99,FALSE) -> 3 | J7: =VLOOKUP(Coursename,courseinfo,100,FALSE) -> 4 | K7: =VLOOKUP(Coursename,courseinfo,101,FALSE) -> 5 | L7: =VLOOKUP(Coursename,courseinfo,102,FALSE) -> 4 | M7: =SUM(D7:L7) -> 36 | O7: =VLOOKUP(Coursename,courseinfo,103,FALSE) -> 4 | P7: =VLOOKUP(Coursename,courseinfo,104,FALSE) -> 4 | Q7: =VLOOKUP(Coursename,courseinfo,105,FALSE) -> 4 | R7: =VLOOKUP(Coursename,courseinfo,106,FALSE) -> 3 | S7: =VLOOKUP(Coursename,courseinfo,107,FALSE) -> 5 | T7: =VLOOKUP(Coursename,courseinfo,108,FALSE) -> 4 | U7: =VLOOKUP(Coursename,courseinfo,109,FALSE) -> 4 | V7: =VLOOKUP(Coursename,courseinfo,110,FALSE) -> 3 | W7: =VLOOKUP(Coursename,courseinfo,111,FALSE) -> 5 | X7: =SUM(O7:W7) -> 36 | Y7: =M7+X7 -> 72
D8: =VLOOKUP(Coursename,courseinfo,4,FALSE) -> 460 | E8: =VLOOKUP(Coursename,courseinfo,5,FALSE) -> 215 | F8: =VLOOKUP(Coursename,courseinfo,6,FALSE) -> 442 | G8: =VLOOKUP(Coursename,courseinfo,7,FALSE) -> 513 | H8: =VLOOKUP(Coursename,courseinfo,8,FALSE) -> 419 | I8: =VLOOKUP(Coursename,courseinfo,9,FALSE) -> 199 | J8: =VLOOKUP(Coursename,courseinfo,10,FALSE) -> 416 | K8: =VLOOKUP(Coursename,courseinfo,11,FALSE) -> 540 | L8: =VLOOKUP(Coursename,courseinfo,12,FALSE) -> 346 | M8: 3550 | O8: =VLOOKUP(Coursename,courseinfo,13,FALSE) -> 419 | P8: =VLOOKUP(Coursename,courseinfo,14,FALSE) -> 340 | Q8: =VLOOKUP(Coursename,courseinfo,15,FALSE) -> 278 | R8: =VLOOKUP(Coursename,courseinfo,16,FALSE) -> 214 | S8: =VLOOKUP(Coursename,courseinfo,17,FALSE) -> 575 | T8: =VLOOKUP(Coursename,courseinfo,18,FALSE) -> 447 | U8: =VLOOKUP(Coursename,courseinfo,19,FALSE) -> 430 | V8: =VLOOKUP(Coursename,courseinfo,20,FALSE) -> 195 | W8: =VLOOKUP(Coursename,courseinfo,21,FALSE) -> 533 | X8: 3431 | Y8: 6981
D9: =VLOOKUP(Coursename,courseinfo,22,FALSE) -> 435 | E9: =VLOOKUP(Coursename,courseinfo,23,FALSE) -> 185 | F9: =VLOOKUP(Coursename,courseinfo,24,FALSE) -> 415 | G9: =VLOOKUP(Coursename,courseinfo,25,FALSE) -> 493 | H9: =VLOOKUP(Coursename,courseinfo,26,FALSE) -> 400 | I9: =VLOOKUP(Coursename,courseinfo,27,FALSE) -> 160 | J9: =VLOOKUP(Coursename,courseinfo,28,FALSE) -> 398 | K9: =VLOOKUP(Coursename,courseinfo,29,FALSE) -> 520 | L9: =VLOOKUP(Coursename,courseinfo,30,FALSE) -> 336 | M9: 3342 | O9: =VLOOKUP(Coursename,courseinfo,31,FALSE) -> 400 | P9: =VLOOKUP(Coursename,courseinfo,32,FALSE) -> 311 | Q9: =VLOOKUP(Coursename,courseinfo,33,FALSE) -> 270 | R9: =VLOOKUP(Coursename,courseinfo,34,FALSE) -> 190 | S9: =VLOOKUP(Coursename,courseinfo,35,FALSE) -> 560 | T9: =VLOOKUP(Coursename,courseinfo,36,FALSE) -> 413 | U9: =VLOOKUP(Coursename,courseinfo,37,FALSE) -> 415 | V9: =VLOOKUP(Coursename,courseinfo,38,FALSE) -> 180 | W9: =VLOOKUP(Coursename,courseinfo,39,FALSE) -> 513 | X9: 3252 | Y9: 6594
D10: =VLOOKUP(Coursename,courseinfo,40,FALSE) -> 423 | E10: =VLOOKUP(Coursename,courseinfo,41,FALSE) -> 162 | F10: =VLOOKUP(Coursename,courseinfo,42,FALSE) -> 400 | G10: =VLOOKUP(Coursename,courseinfo,43,FALSE) -> 459 | H10: =VLOOKUP(Coursename,courseinfo,44,FALSE) -> 385 | I10: =VLOOKUP(Coursename,courseinfo,45,FALSE) -> 150 | J10: =VLOOKUP(Coursename,courseinfo,46,FALSE) -> 380 | K10: =VLOOKUP(Coursename,courseinfo,47,FALSE) -> 480 | L10: =VLOOKUP(Coursename,courseinfo,48,FALSE) -> 317 | M10: 3156 | O10: =VLOOKUP(Coursename,courseinfo,49,FALSE) -> 378 | P10: =VLOOKUP(Coursename,courseinfo,50,FALSE) -> 285 | Q10: =VLOOKUP(Coursename,courseinfo,51,FALSE) -> 265 | R10: =VLOOKUP(Coursename,courseinfo,52,FALSE) -> 170 | S10: =VLOOKUP(Coursename,courseinfo,53,FALSE) -> 546 | T10: =VLOOKUP(Coursename,courseinfo,54,FALSE) -> 385 | U10: =VLOOKUP(Coursename,courseinfo,55,FALSE) -> 400 | V10: =VLOOKUP(Coursename,courseinfo,56,FALSE) -> 160 | W10: =VLOOKUP(Coursename,courseinfo,57,FALSE) -> 495 | X10: 3084 | Y10: 6240
D11: =VLOOKUP(Coursename,courseinfo,58,FALSE) -> 400 | E11: =VLOOKUP(Coursename,courseinfo,59,FALSE) -> 120 | F11: =VLOOKUP(Coursename,courseinfo,60,FALSE) -> 373 | G11: =VLOOKUP(Coursename,courseinfo,61,FALSE) -> 409 | H11: =VLOOKUP(Coursename,courseinfo,62,FALSE) -> 361 | I11: =VLOOKUP(Coursename,courseinfo,63,FALSE) -> 126 | J11: =VLOOKUP(Coursename,courseinfo,64,FALSE) -> 373 | K11: =VLOOKUP(Coursename,courseinfo,65,FALSE) -> 411 | L11: =VLOOKUP(Coursename,courseinfo,66,FALSE) -> 279 | M11: 2852 | O11: =VLOOKUP(Coursename,courseinfo,67,FALSE) -> 353 | P11: =VLOOKUP(Coursename,courseinfo,68,FALSE) -> 240 | Q11: =VLOOKUP(Coursename,courseinfo,69,FALSE) -> 239 | R11: =VLOOKUP(Coursename,courseinfo,70,FALSE) -> 155 | S11: =VLOOKUP(Coursename,courseinfo,71,FALSE) -> 415 | T11: =VLOOKUP(Coursename,courseinfo,72,FALSE) -> 343 | U11: =VLOOKUP(Coursename,courseinfo,73,FALSE) -> 370 | V11: =VLOOKUP(Coursename,courseinfo,74,FALSE) -> 144 | W11: =VLOOKUP(Coursename,courseinfo,75,FALSE) -> 469 | X11: =SUM(O11:W11) -> 2728 | Y11: 5580
D12: =VLOOKUP(Coursename,courseinfo,76,FALSE) -> 340 | E12: =VLOOKUP(Coursename,courseinfo,77,FALSE) -> 100 | F12: =VLOOKUP(Coursename,courseinfo,78,FALSE) -> 332 | G12: =VLOOKUP(Coursename,courseinfo,79,FALSE) -> 380 | H12: =VLOOKUP(Coursename,courseinfo,80,FALSE) -> 342 | I12: =VLOOKUP(Coursename,courseinfo,81,FALSE) -> 103 | J12: =VLOOKUP(Coursename,courseinfo,82,FALSE) -> 332 | K12: =VLOOKUP(Coursename,courseinfo,83,FALSE) -> 360 | L12: =VLOOKUP(Coursename,courseinfo,84,FALSE) -> 262 | M12: 2551 | O12: =VLOOKUP(Coursename,courseinfo,85,FALSE) -> 294 | P12: =VLOOKUP(Coursename,courseinfo,86,FALSE) -> 200 | Q12: =VLOOKUP(Coursename,courseinfo,87,FALSE) -> 227 | R12: =VLOOKUP(Coursename,courseinfo,88,FALSE) -> 122 | S12: =VLOOKUP(Coursename,courseinfo,89,FALSE) -> 400 | T12: =VLOOKUP(Coursename,courseinfo,90,FALSE) -> 317 | U12: =VLOOKUP(Coursename,courseinfo,91,FALSE) -> 356 | V12: =VLOOKUP(Coursename,courseinfo,92,FALSE) -> 123 | W12: =VLOOKUP(Coursename,courseinfo,93,FALSE) -> 412 | X12: 2451 | Y12: 5002 | AY12: RANKINGS & HOLES WON
A13: Taylor | D13: 5 | E13: 6 | F13: 4 | G13: 7 | H13: 2 | I13: 6 | J13: 4 | K13: 5 | L13: 6 | M13: 45 | N13: =IF(Player1<>"",Player1,"") -> Taylor | O13: 6 | P13: 4 | Q13: 5 | R13: 2 | S13: 3 | T13: 4 | U13: 5 | V13: 6 | W13: 4 | X13: 39 | Y13: 84
A14: Brandon | D14: 7 | E14: 6 | F14: 4 | G14: 3 | H14: 2 | I14: 5 | J14: 7 | K14: 6 | L14: 8 | M14: 48 | N14: =IF(Player2 <> "", Player2, "") -> Brandon | O14: 4 | P14: 5 | Q14: 6 | R14: 7 | S14: 8 | T14: 2 | U14: 4 | V14: 5 | W14: 6 | X14: 47 | Y14: 95
A15: Joe Mama | D15: 2 | E15: 6 | F15: 7 | G15: 7 | H15: 7 | I15: 3 | J15: 4 | K15: 5 | L15: 4 | M15: 45 | N15: =IF(Player3<>"",Player3,"") -> Joe Mama | O15: 3 | P15: 3 | Q15: 2 | R15: 4 | S15: 5 | T15: 6 | U15: 7 | V15: 6 | W15: 5 | X15: 41 | Y15: 86
A16: Michael Jordan | D16: 5 | E16: 3 | F16: 6 | G16: 5 | H16: 4 | I16: 3 | J16: 5 | K16: 4 | L16: 6 | M16: =SUM(D16:L16) -> 41 | N16: =IF(Player4<>"", Player4,"") -> Michael Jordan | O16: 5 | P16: 4 | Q16: 6 | R16: 1 | S16: 3 | T16: 5 | U16: 6 | V16: 4 | W16: 4 | X16: 38 | Y16: =M16+X16 -> 79
A17: HANDICAP | D17: =VLOOKUP(Coursename,courseinfo,112,FALSE) -> 4 | E17: =VLOOKUP(Coursename,courseinfo,113,FALSE) -> 8 | F17: =VLOOKUP(Coursename,courseinfo,114,FALSE) -> 6 | G17: =VLOOKUP(Coursename,courseinfo,115,FALSE) -> 16 | H17: =VLOOKUP(Coursename,courseinfo,116,FALSE) -> 2 | I17: =VLOOKUP(Coursename,courseinfo,117,FALSE) -> 12 | J17: =VLOOKUP(Coursename,courseinfo,118,FALSE) -> 14 | K17: =VLOOKUP(Coursename,courseinfo,119,FALSE) -> 10 | L17: =VLOOKUP(Coursename,courseinfo,120,FALSE) -> 18 | O17: =VLOOKUP(Coursename,courseinfo,121,FALSE) -> 9 | P17: =VLOOKUP(Coursename,courseinfo,122,FALSE) -> 15 | Q17: =VLOOKUP(Coursename,courseinfo,123,FALSE) -> 17 | R17: =VLOOKUP(Coursename,courseinfo,124,FALSE) -> 7 | S17: =VLOOKUP(Coursename,courseinfo,125,FALSE) -> 1 | T17: =VLOOKUP(Coursename,courseinfo,126,FALSE) -> 11 | U17: =VLOOKUP(Coursename,courseinfo,127,FALSE) -> 5 | V17: =VLOOKUP(Coursename,courseinfo,128,FALSE) -> 13 | W17: =VLOOKUP(Coursename,courseinfo,129,FALSE) -> 3
A25: ROUND RESULTS
A27: PLAYER PLACEMENT | E27: SCORE | G27: COURSE HANDICAP | I27: OVER/UNDER | K27: HOLES WON
A28: 1 | B28: =IF(RANK1<>"",OFFSET($A$12,MATCH(A28,ADMIN!$W$11:$W$14,0),0),"") -> Michael Jordan | E28: =IF(RANK1<>"",OFFSET($Y$12,MATCH(A28,ADMIN!$W$11:$W$14,0),0),"") -> 79 | G28: =IF(RANK1<>"",OFFSET(ADMIN!$V$10,MATCH(A28,ADMIN!$W$11:$W$14,0),0),"") -> 6.028318584 | I28: =IF(First<>"",IF($Y$13=$M$13,Score1-$M$7,Score1-$Y$7),"") -> 7 | K28: =IF(RANK1<>"",OFFSET(ADMIN!$T$10,MATCH(A28,ADMIN!$W$11:$W$14,0),0),"") -> 0
A29: 2 | B29: =IF(RANK1<>"",OFFSET($A$12,MATCH(A29,ADMIN!$W$11:$W$14,0),0),"") -> Taylor | E29: =IF(RANK1<>"",OFFSET($Y$12,MATCH(A29,ADMIN!$W$11:$W$14,0),0),"") -> 84 | G29: =IF(RANK1<>"",OFFSET(ADMIN!$V$10,MATCH(A29,ADMIN!$W$11:$W$14,0),0),"") -> 10.78141593 | I29: =IF(Second<>"",IF($Y$13=$M$13,Score2-$M$7,Score2-$Y$7),"") -> 12 | K29: =IF(RANK1<>"",OFFSET(ADMIN!$T$10,MATCH(A29,ADMIN!$W$11:$W$14,0),0),"") -> 0
A30: 3 | B30: =IF(RANK1<>"",OFFSET($A$12,MATCH(A30,ADMIN!$W$11:$W$14,0),0),"") -> Joe Mama | E30: =IF(RANK1<>"",OFFSET($Y$12,MATCH(A30,ADMIN!$W$11:$W$14,0),0),"") -> 86 | G30: =IF(RANK1<>"",OFFSET(ADMIN!$V$10,MATCH(A30,ADMIN!$W$11:$W$14,0),0),"") -> 15.53451327 | I30: =IF(Third<>"",IF($Y$13=$M$13,Score3-$M$7,Score3-$Y$7),"") -> 14 | K30: =IF(RANK1<>"",OFFSET(ADMIN!$T$10,MATCH(A30,ADMIN!$W$11:$W$14,0),0),"") -> 4
A31: 4 | B31: =IF(RANK1<>"",OFFSET($A$12,MATCH(A31,ADMIN!$W$11:$W$14,0),0),"") -> Brandon | E31: =IF(RANK1<>"",OFFSET($Y$12,MATCH(A31,ADMIN!$W$11:$W$14,0),0),"") -> 95 | G31: =IF(RANK1<>"",OFFSET(ADMIN!$V$10,MATCH(A31,ADMIN!$W$11:$W$14,0),0),"") -> 22.25840708 | I31: =IF(Fourth<>"",IF($Y$13=$M$13,Score4-$M$7,Score4-$Y$7),"") -> 23 | K31: =IF(RANK1<>"",OFFSET(ADMIN!$T$10,MATCH(A31,ADMIN!$W$11:$W$14,0),0),"") -> 3
B74: 5 | C74: 6 | D74: 4 | E74: 7 | F74: 2 | G74: 6 | H74: 4 | I74: 5 | J74: 6 | L74: 6 | M74: 4 | N74: 5 | O74: 2 | P74: 3 | Q74: 4 | R74: 5 | S74: 6 | T74: 4
B75: 7 | C75: 6 | D75: 4 | E75: 3 | F75: 2 | G75: 5 | H75: 7 | I75: 6 | J75: 8 | L75: 4 | M75: 5 | N75: 6 | O75: 7 | P75: 9 | Q75: 2 | R75: 4 | S75: 5 | T75: 6
B76: 2 | C76: 6 | D76: 7 | E76: 8 | F76: 9 | G76: 3 | H76: 4 | I76: 5 | J76: 4 | L76: 3 | M76: 3 | N76: 2 | O76: 4 | P76: 5 | Q76: 6 | R76: 7 | S76: 6 | T76: 5
B77: 5 | C77: 3 | D77: 6 | E77: 5 | F77: 4 | G77: 3 | H77: 5 | I77: 4 | J77: 6 | L77: 5 | M77: 4 | N77: 6 | O77: 1 | P77: 3 | Q77: 5 | R77: 6 | S77: 4 | T77: 4

Sheet SCORE CENTER
B1: STANDINGS | AO1: Number of Players: | AP1: =COUNTIF(B4:B13,text) -> 0
K2: SCORE CENTER
A3: \ | B3: Player Name | D3: Average Score | F3: Holes Won
A4: 1 | B4: =OFFSET($A$18,MATCH(A4,$Z$19:$Z$66,0),0) -> Michael Jordan | D4: =OFFSET($W$18,MATCH(A4,$Z$19:$Z$66,0),0) -> 79 | F4: =OFFSET($Y$18,MATCH(A4,$Z$19:$Z$66,0),0) -> 
A5: 2 | B5: =OFFSET($A$18,MATCH(A5,$Z$19:$Z$66,0),0) -> Taylor | D5: =OFFSET($W$18,MATCH(A5,$Z$19:$Z$66,0),0) -> 84 | F5: =OFFSET($Y$18,MATCH(A5,$Z$19:$Z$66,0),0) -> 
A6: 3 | B6: =OFFSET($A$18,MATCH(A6,$Z$19:$Z$66,0),0) -> Joe Mama | D6: =OFFSET($W$18,MATCH(A6,$Z$19:$Z$66,0),0) -> 86 | F6: =OFFSET($Y$18,MATCH(A6,$Z$19:$Z$66,0),0) -> 5
A7: 4 | B7: =IF(A7<>"",OFFSET($A$18,MATCH(A7,$Z$19:$Z$66,0),0),"") -> Brandon | D7: =IF(A7<>"",OFFSET($W$18,MATCH(A7,$Z$19:$Z$66,0),0),"") -> 95 | F7: =IF(A7<>"",OFFSET($Y$18,MATCH(A7,$Z$19:$Z$66,0),0),"") -> 3
A8: 5
A9: 6 | B9: Posty
A10: 7 | B10: Kramer
H13: SCOREBOARD: ALL PLAYERS, HANDICAP AND HOLES WON
C17: 1 | D17: 2 | E17: 3 | F17: 4 | G17: 5 | H17: 6 | I17: 7 | J17: 8 | K17: 9 | L17: 10 | M17: 11 | N17: 12 | O17: 13 | P17: 14 | Q17: 15 | R17: 16 | S17: 17 | T17: 18 | U17: 19 | V17: 20 | W17: Average Score | X17: Handicap Index | Y17: Number of Holes Won | Z17: Rank
A19: Taylor | C19: 84 | W19: =IF(C19<> "",AVERAGE(C19:V19),"") -> 84 | X19: =ADMIN!Y29 -> 9.3 | Y19: =ADMIN!Y30 ->  | Z19: 2
A20: Brandon | C20: 95 | W20: =IF(C20<> "",AVERAGE(C20:V20),"") -> 95 | X20: =ADMIN!Y34 -> 19.2 | Y20: =ADMIN!Y35 -> 3 | Z20: 4
A21: Joe Mama | C21: 86 | W21: 86 | X21: =ADMIN!Y39 -> 13.4 | Y21: =ADMIN!Y40 -> 5 | Z21: 3
A22: Michael Jordan | C22: 79 | W22: 79 | X22: =ADMIN!Y44 -> 5.2 | Y22: =ADMIN!Y50 ->  | Z22: 1
A23: Kramer | X23: =ADMIN!Y49 ->  | Y23: =ADMIN!Y55 ->  | Z23: 7
A24: Watta Guy | X24: =ADMIN!Y54 ->  | Y24: =ADMIN!Y60 ->  | Z24: 1
A25: Posty | X25: =ADMIN!Y64 ->  | Y25: =ADMIN!Y65 ->  | Z25: 6
X26: =ADMIN!Y69 ->  | Y26: =ADMIN!Y90 -> 
X27: =ADMIN!Y94 ->  | Y27: =ADMIN!Y95 -> 
X28: =ADMIN!Y99 ->  | Y28: =ADMIN!Y100 -> 
X29: =ADMIN!Y104 ->  | Y29: =ADMIN!Y105 -> 
X30: =ADMIN!Y109 ->  | Y30: =ADMIN!Y110 -> 
X31: =ADMIN!Y114 ->  | Y31: =ADMIN!Y115 -> 
X32: =ADMIN!Y119 ->  | Y32: =ADMIN!Y120 -> 
X33: =ADMIN!Y124 ->  | Y33: =ADMIN!Y125 -> 
X34: =ADMIN!Y129 ->  | Y34: =ADMIN!Y130 -> 
X35: =ADMIN!Y134 ->  | Y35: =ADMIN!Y135 -> 
X36: =ADMIN!Y139 ->  | Y36: =ADMIN!Y140 -> 
X37: =ADMIN!Y144 ->  | Y37: =ADMIN!Y145 -> 
X38: =ADMIN!Y149 ->  | Y38: =ADMIN!Y150 -> 
X39: =ADMIN!Y154 ->  | Y39: =ADMIN!Y155 -> 
X40: =ADMIN!Y159 ->  | Y40: =ADMIN!Y160 -> 
X41: =ADMIN!Y164 ->  | Y41: =ADMIN!Y165 -> 
X42: =ADMIN!Y169 ->  | Y42: =ADMIN!Y170 -> 
X43: =ADMIN!Y174 ->  | Y43: =ADMIN!Y175 -> 
X44: =ADMIN!Y179 ->  | Y44: =ADMIN!Y180 -> 
X45: =ADMIN!Y184 ->  | Y45: =ADMIN!Y185 -> 
X46: =ADMIN!Y189 ->  | Y46: =ADMIN!Y190 -> 
X47: =ADMIN!Y194 ->  | Y47: =ADMIN!Y195 -> 
X48: =ADMIN!Y199 ->  | Y48: =ADMIN!Y200 -> 
X49: =ADMIN!Y204 ->  | Y49: =ADMIN!Y205 -> 
X50: =ADMIN!Y209 ->  | Y50: =ADMIN!Y210 -> 
X51: =ADMIN!Y213 ->  | Y51: =ADMIN!Y215 -> 
X52: =ADMIN!Y219 ->  | Y52: =ADMIN!Y220 -> 
X53: =ADMIN!Y224 ->  | Y53: =ADMIN!Y225 -> 
X54: =ADMIN!Y229 ->  | Y54: =ADMIN!Y230 -> 
X55: =ADMIN!Y234 ->  | Y55: =ADMIN!Y235 -> 
X56: =ADMIN!Y239 ->  | Y56: =ADMIN!Y240 -> 
X57: =ADMIN!Y244 ->  | Y57: =ADMIN!Y245 -> 
X58: =ADMIN!Y249 ->  | Y58: =ADMIN!Y250 -> 
X59: =ADMIN!Y254 ->  | Y59: =ADMIN!Y255 -> 
X60: =ADMIN!Y259 ->  | Y60: =ADMIN!Y260 -> 
X61: =ADMIN!Y264 ->  | Y61: =ADMIN!Y265 -> 
X62: =ADMIN!Y269 ->  | Y62: =ADMIN!Y270 -> 
X63: =ADMIN!Y274 ->  | Y63: =ADMIN!Y275 -> 
W79: =IF(C79<> "",AVERAGE(C79:V79),"") -> 

Sheet COURSES
A1: Course Name: | B1: Course Rating | C1: Slope | D1: 1 | E1: 2 | F1: 3 | G1: 4 | H1: 5 | I1: 6 | J1: 7 | K1: 8 | L1: 9 | M1: 10 | N1: 11 | O1: 12 | P1: 13 | Q1: 14 | R1: 15 | S1: 16 | T1: 17 | U1: 18 | V1: 1 | W1: 2 | X1: 3 | Y1: 4 | Z1: 5 | AA1: 6 | AB1: 7 | AC1: 8 | AD1: 9 | AE1: 10 | AF1: 11 | AG1: 12 | AH1: 13 | AI1: 14 | AJ1: 15 | AK1: 16 | AL1: 17 | AM1: 18 | AN1: 1 | AO1: 2 | AP1: 3 | AQ1: 4 | AR1: 5 | AS1: 6 | AT1: 7 | AU1: 8 | AV1: 9 | AW1: 10 | AX1: 11 | AY1: 12 | AZ1: 13 | BA1: 14 | BB1: 15 | BC1: 16 | BD1: 17 | BE1: 18 | BF1: 1 | BG1: 2 | BH1: 3 | BI1: 4 | BJ1: 5 | BK1: 6 | BL1: 7 | BM1: 8 | BN1: 9 | BO1: 10 | BP1: 11 | BQ1: 12 | BR1: 13 | BS1: 14 | BT1: 15 | BU1: 16 | BV1: 17 | BW1: 18 | BX1: 1 | BY1: 2 | BZ1: 3 | CA1: 4 | CB1: 5 | CC1: 6 | CD1: 7 | CE1: 8 | CF1: 9 | CG1: 10 | CH1: 11 | CI1: 12 | CJ1: 13 | CK1: 14 | CL1: 15 | CM1: 16 | CN1: 17 | CO1: 18 | CP1: 1 | CQ1: 2 | CR1: 3 | CS1: 4 | CT1: 5 | CU1: 6 | CV1: 7 | CW1: 8 | CX1: 9 | CY1: 10 | CZ1: 11 | DA1: 12 | DB1: 13 | DC1: 14 | DD1: 15 | DE1: 16 | DF1: 17 | DG1: 18 | DH1: 1 | DI1: 2 | DJ1: 3 | DK1: 4 | DL1: 5 | DM1: 6 | DN1: 7 | DO1: 8 | DP1: 9 | DQ1: 10 | DR1: 11 | DS1: 12 | DT1: 13 | DU1: 14 | DV1: 15 | DW1: 16 | DX1: 17 | DY1: 18
A2: The Oaks at Spanish Fork | B2: 96.5 | C2: 110 | D2: - | E2: - | F2: - | G2: - | H2: - | I2: - | J2: - | K2: - | L2: - | M2: - | N2: - | O2: - | P2: - | Q2: - | R2: - | S2: - | T2: - | U2: - | V2: 384 | W2: 531 | X2: 485 | Y2: 210 | Z2: 410 | AA2: 484 | AB2: 460 | AC2: 226 | AD2: 318 | AE2: 527 | AF2: 358 | AG2: 126 | AH2: 326 | AI2: 309 | AJ2: 308 | AK2: 444 | AL2: 165 | AM2: 493 | AN2: 340 | AO2: 443 | AP2: 439 | AQ2: 181 | AR2: 341 | AS2: 378 | AT2: 385 | AU2: 156 | AV2: 305 | AW2: 512 | AX2: 347 | AY2: 114 | AZ2: 279 | BA2: 300 | BB2: 291 | BC2: 405 | BD2: 149 | BE2: 481 | BF2: 319 | BG2: 413 | BH2: 411 | BI2: 141 | BJ2: 301 | BK2: 363 | BL2: 361 | BM2: 114 | BN2: 277 | BO2: 448 | BP2: 324 | BQ2: 79 | BR2: 255 | BS2: 284 | BT2: 272 | BU2: 378 | BV2: 124 | BW2: 455 | BX2: - | BY2: - | BZ2: - | CA2: - | CB2: - | CC2: - | CD2: - | CE2: - | CF2: - | CG2: - | CH2: - | CI2: - | CJ2: - | CK2: - | CL2: - | CM2: - | CN2: - | CO2: - | CP2: 4 | CQ2: 5 | CR2: 5 | CS2: 3 | CT2: 4 | CU2: 4 | CV2: 4 | CW2: 3 | CX2: 4 | CY2: 5 | CZ2: 4 | DA2: 3 | DB2: 4 | DC2: 4 | DD2: 4 | DE2: 4 | DF2: 3 | DG2: 5 | DH2: 7 | DI2: 3 | DJ2: 9 | DK2: 15 | DL2: 11 | DM2: 5 | DN2: 1 | DO2: 17 | DP2: 13 | DQ2: 6 | DR2: 8 | DS2: 18 | DT2: 14 | DU2: 12 | DV2: 10 | DW2: 2 | DX2: 16 | DY2: 4
A3: Gladstan Golf Course | B3: 72.7 | C3: 131 | D3: 460 | E3: 215 | F3: 442 | G3: 513 | H3: 419 | I3: 199 | J3: 416 | K3: 540 | L3: 346 | M3: 419 | N3: 340 | O3: 278 | P3: 214 | Q3: 575 | R3: 447 | S3: 430 | T3: 195 | U3: 533 | V3: 435 | W3: 185 | X3: 415 | Y3: 493 | Z3: 400 | AA3: 160 | AB3: 398 | AC3: 520 | AD3: 336 | AE3: 400 | AF3: 311 | AG3: 270 | AH3: 190 | AI3: 560 | AJ3: 413 | AK3: 415 | AL3: 180 | AM3: 513 | AN3: 423 | AO3: 162 | AP3: 400 | AQ3: 459 | AR3: 385 | AS3: 150 | AT3: 380 | AU3: 480 | AV3: 317 | AW3: 378 | AX3: 285 | AY3: 265 | AZ3: 170 | BA3: 546 | BB3: 385 | BC3: 400 | BD3: 160 | BE3: 495 | BF3: 400 | BG3: 120 | BH3: 373 | BI3: 409 | BJ3: 361 | BK3: 126 | BL3: 373 | BM3: 411 | BN3: 279 | BO3: 353 | BP3: 240 | BQ3: 239 | BR3: 155 | BS3: 415 | BT3: 343 | BU3: 370 | BV3: 144 | BW3: 469 | BX3: 340 | BY3: 100 | BZ3: 332 | CA3: 380 | CB3: 342 | CC3: 103 | CD3: 332 | CE3: 360 | CF3: 262 | CG3: 294 | CH3: 200 | CI3: 227 | CJ3: 122 | CK3: 400 | CL3: 317 | CM3: 356 | CN3: 123 | CO3: 412 | CP3: 4 | CQ3: 3 | CR3: 4 | CS3: 5 | CT3: 4 | CU3: 3 | CV3: 4 | CW3: 5 | CX3: 4 | CY3: 4 | CZ3: 4 | DA3: 4 | DB3: 3 | DC3: 5 | DD3: 4 | DE3: 4 | DF3: 3 | DG3: 5 | DH3: 4 | DI3: 8 | DJ3: 6 | DK3: 16 | DL3: 2 | DM3: 12 | DN3: 14 | DO3: 10 | DP3: 18 | DQ3: 9 | DR3: 15 | DS3: 17 | DT3: 7 | DU3: 1 | DV3: 11 | DW3: 5 | DX3: 13 | DY3: 3
A4: Hobble Creek Golf Course | B4: 69.5 | C4: 123 | D4: 400 | E4: 390 | F4: 495 | G4: 200 | H4: 422 | I4: 190 | J4: 362 | K4: 395 | L4: 520 | M4: 167 | N4: 385 | O4: 380 | P4: 470 | Q4: 145 | R4: 400 | S4: 175 | T4: 420 | U4: 490 | V4: 380 | W4: 370 | X4: 472 | Y4: 175 | Z4: 390 | AA4: 165 | AB4: 340 | AC4: 370 | AD4: 495 | AE4: 150 | AF4: 370 | AG4: 365 | AH4: 450 | AI4: 130 | AJ4: 385 | AK4: 160 | AL4: 400 | AM4: 480 | AN4: 365 | AO4: 360 | AP4: 450 | AQ4: 155 | AR4: 370 | AS4: 145 | AT4: 330 | AU4: 360 | AV4: 480 | AW4: 140 | AX4: 360 | AY4: 360 | AZ4: 440 | BA4: 120 | BB4: 375 | BC4: 140 | BD4: 390 | BE4: 470 | BF4: - | BG4: - | BH4: - | BI4: - | BJ4: - | BK4: - | BL4: - | BM4: - | BN4: - | BO4: - | BP4: - | BQ4: - | BR4: - | BS4: - | BT4: - | BU4: - | BV4: - | BW4: - | BX4: 315 | BY4: 315 | BZ4: 445 | CA4: 110 | CB4: 350 | CC4: 125 | CD4: 310 | CE4: 345 | CF4: 435 | CG4: 130 | CH4: 345 | CI4: 350 | CJ4: 430 | CK4: 100 | CL4: 370 | CM4: 120 | CN4: 380 | CP4: 4 | CQ4: 4 | CR4: 5 | CS4: 3 | CT4: 4 | CU4: 3 | CV4: 4 | CW4: 4 | CX4: 5 | CY4: 3 | CZ4: 4 | DA4: 4 | DB4: 5 | DC4: 3 | DD4: 4 | DE4: 3 | DF4: 4 | DG4: 5 | DH4: 5 | DI4: 11 | DJ4: 17 | DK4: 9 | DL4: 1 | DM4: 7 | DN4: 15 | DO4: 3 | DP4: 13 | DQ4: 14 | DR4: 8 | DS4: 6 | DT4: 18 | DU4: 16 | DV4: 4 | DW4: 10 | DX4: 2 | DY4: 12
A5: Eastbay Golf Course | B5: 71.8 | C5: 130 | D5: 527 | E5: 423 | F5: 183 | G5: 480 | H5: 380 | I5: 434 | J5: 195 | K5: 452 | L5: 578 | M5: 418 | N5: 175 | O5: 507 | P5: 541 | Q5: 206 | R5: 414 | S5: 517 | T5: 139 | U5: 441 | V5: 502 | W5: 410 | X5: 160 | Y5: 417 | Z5: 351 | AA5: 381 | AB5: 167 | AC5: 416 | AD5: 524 | AE5: 398 | AF5: 163 | AG5: 488 | AH5: 520 | AI5: 193 | AJ5: 389 | AK5: 500 | AL5: 123 | AM5: 421 | AN5: 450 | AO5: 372 | AP5: 138 | AQ5: 352 | AR5: 328 | AS5: 362 | AT5: 145 | AU5: 391 | AV5: 498 | AW5: 336 | AX5: 140 | AY5: 446 | AZ5: 471 | BA5: 168 | BB5: 364 | BC5: 468 | BD5: 105 | BE5: 370 | BF5: 407 | BG5: 331 | BH5: 105 | BI5: 305 | BJ5: 294 | BK5: 312 | BL5: 116 | BM5: 346 | BN5: 442 | BO5: 267 | BP5: 105 | BQ5: 398 | BR5: 363 | BS5: 156 | BT5: 317 | BU5: 391 | BV5: 90 | BW5: 296 | BX5: - | BY5: - | BZ5: - | CA5: - | CB5: - | CC5: - | CD5: - | CE5: - | CF5: - | CG5: - | CH5: - | CI5: - | CJ5: - | CK5: - | CL5: - | CM5: - | CN5: - | CO5: - | CP5: 5 | CQ5: 4 | CR5: 3 | CS5: 4 | CT5: 4 | CU5: 4 | CV5: 3 | CW5: 4 | CX5: 5 | CY5: 4 | CZ5: 3 | DA5: 5 | DB5: 5 | DC5: 3 | DD5: 4 | DE5: 5 | DF5: 3 | DG5: 4 | DH5: 7 | DI5: 11 | DJ5: 15 | DK5: 1 | DL5: 13 | DM5: 9 | DN5: 17 | DO5: 3 | DP5: 5 | DQ5: 4 | DR5: 16 | DS5: 8 | DT5: 6 | DU5: 14 | DV5: 12 | DW5: 10 | DX5: 18 | DY5: 2
A6: Links at Sleepy Ridge | B6: 68.9 | C6: 115 | D6: 419 | E6: 496 | F6: 445 | G6: 187 | H6: 520 | I6: 441 | J6: 213 | K6: 388 | L6: 393 | M6: 413 | N6: 356 | O6: 162 | P6: 541 | Q6: 197 | R6: 411 | S6: 459 | T6: 526 | U6: 402 | V6: 378 | W6: 472 | X6: 414 | Y6: 164 | Z6: 484 | AA6: 381 | AB6: 188 | AC6: 357 | AD6: 378 | AE6: 370 | AF6: 325 | AG6: 134 | AH6: 478 | AI6: 181 | AJ6: 377 | AK6: 418 | AL6: 476 | AM6: 368 | AN6: 352 | AO6: 460 | AP6: 377 | AQ6: 150 | AR6: 468 | AS6: 368 | AT6: 175 | AU6: 344 | AV6: 367 | AW6: 341 | AX6: 291 | AY6: 113 | AZ6: 468 | BA6: 161 | BB6: 365 | BC6: 406 | BD6: 472 | BE6: 308 | BF6: 281 | BG6: 420 | BH6: 312 | BI6: 128 | BJ6: 380 | BK6: 324 | BL6: 162 | BM6: 271 | BN6: 295 | BO6: 302 | BP6: 227 | BQ6: 101 | BR6: 360 | BS6: 141 | BT6: 348 | BU6: 363 | BV6: 406 | BW6: 302 | CP6: 4 | CQ6: 5 | CR6: 4 | CS6: 3 | CT6: 5 | CU6: 4 | CV6: 3 | CW6: 4 | CX6: 4 | CY6: 4 | CZ6: 4 | DA6: 3 | DB6: 5 | DC6: 3 | DD6: 4 | DE6: 4 | DF6: 5 | DG6: 4 | DH6: 3 | DI6: 13 | DJ6: 7 | DK6: 17 | DL6: 11 | DM6: 1 | DN6: 5 | DO6: 15 | DP6: 9 | DQ6: 4 | DR6: 10 | DS6: 18 | DT6: 14 | DU6: 16 | DV6: 2 | DW6: 8 | DX6: 6 | DY6: 12
A7: Fox Hollow Golf Club | B7: 73.6 | C7: 126 | D7: 465 | E7: 563 | F7: 222 | G7: 432 | H7: 365 | I7: 475 | J7: 397 | K7: 164 | L7: 498 | M7: 538 | N7: 423 | O7: 239 | P7: 490 | Q7: 187 | R7: 338 | S7: 572 | T7: 379 | U7: 442 | V7: 448 | W7: 522 | X7: 209 | Y7: 427 | Z7: 351 | AA7: 449 | AB7: 380 | AC7: 155 | AD7: 479 | AE7: 510 | AF7: 405 | AG7: 225 | AH7: 453 | AI7: 173 | AJ7: 319 | AK7: 515 | AL7: 365 | AM7: 425 | AN7: 427 | AO7: 491 | AP7: 180 | AQ7: 405 | AR7: 316 | AS7: 417 | AT7: 341 | AU7: 141 | AV7: 453 | AW7: 501 | AX7: 386 | AY7: 203 | AZ7: 417 | BA7: 158 | BB7: 304 | BC7: 505 | BD7: 354 | BE7: 371 | BF7: 335 | BG7: 474 | BH7: 139 | BI7: 372 | BJ7: 290 | BK7: 308 | BL7: 274 | BM7: 134 | BN7: 431 | BO7: 493 | BP7: 356 | BQ7: 193 | BR7: 360 | BS7: 144 | BT7: 246 | BU7: 451 | BV7: 300 | BW7: 359 | BX7: 330 | BY7: 454 | BZ7: 133 | CA7: 366 | CB7: 280 | CC7: 305 | CD7: 270 | CE7: 128 | CF7: 378 | CG7: 485 | CH7: 350 | CI7: 173 | CJ7: 295 | CK7: 136 | CL7: 242 | CM7: 435 | CN7: 295 | CO7: 350 | CP7: 4 | CQ7: 5 | CR7: 3 | CS7: 4 | CT7: 4 | CU7: 4 | CV7: 4 | CW7: 3 | CX7: 5 | CY7: 5 | CZ7: 4 | DA7: 3 | DB7: 4 | DC7: 3 | DD7: 4 | DE7: 5 | DF7: 4 | DG7: 4 | DH7: 3 | DI7: 5 | DJ7: 11 | DK7: 13 | DL7: 15 | DM7: 1 | DN7: 9 | DO7: 17 | DP7: 7 | DQ7: 12 | DR7: 14 | DS7: 6 | DT7: 2 | DU7: 18 | DV7: 16 | DW7: 4 | DX7: 8 | DY7: 10
A8: Cedar Hills Golf Club | B8: 71.7 | C8: 136 | D8: 371 | E8: 356 | F8: 163 | G8: 539 | H8: 200 | I8: 460 | J8: 393 | K8: 148 | L8: 507 | M8: 487 | N8: 120 | O8: 365 | P8: 357 | Q8: 304 | R8: 217 | S8: 332 | T8: 371 | U8: 456 | V8: - | W8: - | X8: - | Y8: - | Z8: - | AA8: - | AB8: - | AC8: - | AD8: - | AE8: - | AF8: - | AG8: - | AH8: - | AI8: - | AJ8: - | AK8: - | AL8: - | AM8: - | AN8: - | AO8: - | AP8: - | AQ8: - | AR8: - | AS8: - | AT8: - | AU8: - | AV8: - | AW8: - | AX8: - | AY8: - | AZ8: - | BA8: - | BB8: - | BC8: - | BD8: - | BE8: - | BF8: 371 | BG8: 356 | BH8: 163 | BI8: 539 | BJ8: 200 | BK8: 460 | BL8: 393 | BM8: 148 | BN8: 507 | BO8: 487 | BP8: 120 | BQ8: 365 | BR8: 357 | BS8: 304 | BT8: 189 | BU8: 332 | BV8: 371 | BW8: 456 | BX8: - | BY8: - | BZ8: - | CA8: - | CB8: - | CC8: - | CD8: - | CE8: - | CF8: - | CG8: - | CH8: - | CI8: - | CJ8: - | CK8: - | CL8: - | CM8: - | CN8: - | CO8: - | CP8: 4 | CQ8: 4 | CR8: 3 | CS8: 5 | CT8: 3 | CU8: 5 | CV8: 4 | CW8: 3 | CX8: 5 | CY8: 5 | CZ8: 3 | DA8: 4 | DB8: 4 | DC8: 4 | DD8: 3 | DE8: 4 | DF8: 4 | DG8: 5 | DH8: 15 | DI8: 11 | DJ8: 13 | DK8: 3 | DL8: 5 | DM8: 7 | DN8: 1 | DO8: 17 | DP8: 9 | DQ8: 12 | DR8: 18 | DS8: 8 | DT8: 4 | DU8: 14 | DV8: 10 | DW8: 16 | DX8: 6 | DY8: 2
A9: Thanksgiving Point Golf Club | B9: 76.2 | C9: 140 | D9: 379 | E9: 583 | F9: 325 | G9: 196 | H9: 617 | I9: 495 | J9: 208 | K9: 443 | L9: 476 | M9: 419 | N9: 678 | O9: 436 | P9: 453 | Q9: 622 | R9: 218 | S9: 478 | T9: 250 | U9: 440 | V9: 344 | W9: 522 | X9: 288 | Y9: 176 | Z9: 550 | AA9: 426 | AB9: 190 | AC9: 387 | AD9: 430 | AE9: 390 | AF9: 600 | AG9: 394 | AH9: 405 | AI9: 510 | AJ9: 194 | AK9: 418 | AL9: 187 | AM9: 385 | AN9: 309 | AO9: 493 | AP9: 268 | AQ9: 155 | AR9: 523 | AS9: 397 | AT9: 182 | AU9: 355 | AV9: 396 | AW9: 350 | AX9: 585 | AY9: 372 | AZ9: 375 | BA9: 495 | BB9: 166 | BC9: 391 | BD9: 167 | BE9: 365 | BF9: 365 | BG9: 554 | BH9: 308 | BI9: 194 | BJ9: 586 | BK9: 460 | BL9: 198 | BM9: 420 | BN9: 460 | BO9: 390 | BP9: 646 | BQ9: 420 | BR9: 436 | BS9: 575 | BT9: 194 | BU9: 453 | BV9: 213 | BW9: 435 | BX9: 272 | BY9: 462 | BZ9: 247 | CA9: 138 | CB9: 500 | CC9: 371 | CD9: 131 | CE9: 333 | CF9: 352 | CG9: 325 | CH9: 538 | CI9: 345 | CJ9: 353 | CK9: 485 | CL9: 139 | CM9: 360 | CN9: 145 | CO9: 342 | CP9: 4 | CQ9: 5 | CR9: 4 | CS9: 3 | CT9: 5 | CU9: 4 | CV9: 3 | CW9: 4 | CX9: 4 | CY9: 4 | CZ9: 5 | DA9: 4 | DB9: 4 | DC9: 5 | DD9: 3 | DE9: 4 | DF9: 3 | DG9: 4 | DH9: 11 | DI9: 7 | DJ9: 13 | DK9: 17 | DL9: 5 | DM9: 1 | DN9: 15 | DO9: 9 | DP9: 3 | DQ9: 14 | DR9: 6 | DS9: 12 | DT9: 4 | DU9: 8 | DV9: 18 | DW9: 2 | DX9: 16 | DY9: 10
A10: The Ranches Golf Club | B10: 73.8 | C10: 127 | D10: 566 | E10: 434 | F10: 364 | G10: 435 | H10: 237 | I10: 393 | J10: 505 | K10: 189 | L10: 418 | M10: 438 | N10: 627 | O10: 238 | P10: 529 | Q10: 402 | R10: 444 | S10: 209 | T10: 439 | U10: 318 | V10: 539 | W10: 384 | X10: 339 | Y10: 410 | Z10: 222 | AA10: 378 | AB10: 454 | AC10: 176 | AD10: 393 | AE10: 390 | AF10: 571 | AG10: 183 | AH10: 510 | AI10: 369 | AJ10: 408 | AK10: 186 | AL10: 416 | AM10: 318 | AN10: 502 | AO10: 363 | AP10: 322 | AQ10: 349 | AR10: 186 | AS10: 359 | AT10: 432 | AU10: 162 | AV10: 350 | AW10: 370 | AX10: 543 | AY10: 157 | AZ10: 482 | BA10: 346 | BB10: 374 | BC10: 158 | BD10: 388 | BE10: 293 | BF10: 466 | BG10: 238 | BH10: 296 | BI10: 303 | BJ10: 114 | BK10: 326 | BL10: 408 | BM10: 133 | BN10: 314 | BO10: 344 | BP10: 489 | BQ10: 133 | BR10: 426 | BS10: 327 | BT10: 349 | BU10: 133 | BV10: 330 | BW10: 263 | CP10: 5 | CQ10: 4 | CR10: 4 | CS10: 4 | CT10: 3 | CU10: 4 | CV10: 5 | CW10: 3 | CX10: 4 | CY10: 4 | CZ10: 5 | DA10: 3 | DB10: 5 | DC10: 4 | DD10: 4 | DE10: 3 | DF10: 4 | DG10: 4 | DH10: 3 | DI10: 11 | DJ10: 13 | DK10: 1 | DL10: 7 | DM10: 15 | DN10: 5 | DO10: 17 | DP10: 9 | DQ10: 8 | DR10: 2 | DS10: 14 | DT10: 10 | DU10: 12 | DV10: 4 | DW10: 18 | DX10: 6 | DY10: 16
A11: TalonsCove Golf Club | B11: 72.5 | C11: 127 | D11: 565 | E11: 427 | F11: 375 | G11: 172 | H11: 426 | I11: 262 | J11: 584 | K11: 228 | L11: 550 | M11: 465 | N11: 389 | O11: 387 | P11: 536 | Q11: 163 | R11: 591 | S11: 313 | T11: 223 | U11: 440 | V11: 535 | W11: 374 | X11: 349 | Y11: 145 | Z11: 379 | AA11: 223 | AB11: 549 | AC11: 203 | AD11: 515 | AE11: 425 | AF11: 354 | AG11: 353 | AH11: 502 | AI11: 143 | AJ11: 553 | AK11: 288 | AL11: 188 | AM11: 420 | AN11: 489 | AO11: 343 | AP11: 306 | AQ11: 124 | AR11: 337 | AS11: 187 | AT11: 511 | AU11: 144 | AV11: 485 | AW11: 392 | AX11: 307 | AY11: 320 | AZ11: 473 | BA11: 141 | BB11: 506 | BC11: 256 | BD11: 157 | BE11: 396 | BF11: 393 | BG11: 306 | BH11: 271 | BI11: 106 | BJ11: 301 | BK11: 158 | BL11: 475 | BM11: 121 | BN11: 459 | BO11: 350 | BP11: 252 | BQ11: 268 | BR11: 398 | BS11: 112 | BT11: 435 | BU11: 229 | BV11: 125 | BW11: 369 | CP11: 5 | CQ11: 4 | CR11: 4 | CS11: 3 | CT11: 4 | CU11: 3 | CV11: 5 | CW11: 3 | CX11: 5 | CY11: 4 | CZ11: 4 | DA11: 4 | DB11: 5 | DC11: 3 | DD11: 5 | DE11: 4 | DF11: 3 | DG11: 4 | DH11: 7 | DI11: 13 | DJ11: 15 | DK11: 17 | DL11: 9 | DM11: 3 | DN11: 1 | DO11: 11 | DP11: 5 | DQ11: 6 | DR11: 12 | DS11: 14 | DT11: 8 | DU11: 16 | DV11: 2 | DW11: 18 | DX11: 10 | DY11: 4
A12: The Ledges Golf Club
A13: Coral Canyon Golf Course
A14: Green Spring Golf Course
A15: City of St. George Golf Course
A16: Dixie Red Hills Golf Course
A17: Sky Mountain Golf Course

Sheet ADMIN
B2: NOTES
A8: CUSTOM FUNCTIONS TABLE | C8: INPUTS | P8: CURRENT COURSE INFORMATION
C10: 1ST INPUT | E10: 2ND INPUT | G10: 3RD INPUT | I10: 4TH INPUT | K10: 5TH INPUT | M10: 6TH INPUT | P10: PLAYER ROW | R10: SCORE CENTER | T10: HOLES WON | V10: HANDICAP | W10: RANK | X10: RATING
A11: EQUATIONS | B11: HCDIF | C11: SCORE | E11: COURSE RATING | G11: COURSE SLOPE | P11: 26 | R11: =(currentplayer1-26)/5+19 -> 19 | V11: 10.78141593 | W11: 2 | X11: 72.7
B12: HDIND | C12: HANDICAP DIFFERENTIAL | P12: 31 | R12: =(currentplayer2-26)/5+19 -> 20 | T12: 3 | V12: 22.25840708 | W12: 4 | X12: SLOPE
B13: HDAVG | C13: HANDICAP DIFFERENTIALS | E13: COUNT | P13: 36 | R13: =(currentplayer3-26)/5+19 -> 21 | T13: 4 | V13: 15.53451327 | W13: 3 | X13: 131
B14: CHCAP | C14: HANDICAP INDEX | E14: COURSE SLOPE | P14: 41 | R14: =(currentplayer4-26)/5+19 -> 22 | V14: 6.028318584 | W14: 1
A22: CALCULATION CENTER | D22: LAST 20 ROUNDS
D25: 1 | E25: 2 | F25: 3 | G25: 4 | H25: 5 | I25: 6 | J25: 7 | K25: 8 | L25: 9 | M25: 10 | N25: 11 | O25: 12 | P25: 13 | Q25: 14 | R25: 15 | S25: 16 | T25: 17 | U25: 18 | V25: 19 | W25: 20 | X25: RESULTS:
A26: PLAYERS | B26: =IF('SCORE CENTER'!A19<>"",'SCORE CENTER'!A19,"") -> Taylor | C26: SCORE: | D26: 84 | X26: COUNT: | Y26: =COUNT(D26:W26) -> 1
C27: RATING: | D27: 72.7 | X27: - | Y27: -
C28: SLOPE: | D28: 131 | X28: HDAVG: | Y28: =IF(D26<>"",Hdavg(D29:W29,Y26),"") -> 9.747328244
C29: DIFF: | D29: =IF(D26<>"",HCDIF(D26,D27,D28),"") -> 9.747328244 | E29: =IF(E26<>"",HCDIF(E26,E27,E28),"") ->  | X29: INDEX: | Y29: =IF(Y28<>"",HDIND(Y28),"") -> 9.3
C30: WON: | X30: TOTAL: | Y30: =IF(D30<>"",SUM(D30:W30),"") -> 
B31: =IF('SCORE CENTER'!A20<>"",'SCORE CENTER'!A20,"") -> Brandon | C31: SCORE: | D31: 96 | X31: COUNT: | Y31: =COUNT(D31:W31) -> 1
C32: RATING: | D32: 72.7 | X32: - | Y32: -
C33: SLOPE: | D33: 131 | X33: HDAVG: | Y33: =IF(D31<>"",Hdavg(D34:W34,Y31),"") -> 20.09847328
C34: DIFF: | D34: =IF(D31<>"",HCDIF(D31,D32,D33),"") -> 20.09847328 | E34: =IF(E31<>"",HCDIF(E31,E32,E33),"") ->  | F34: =IF(F31<>"",HCDIF(F31,F32,F33),"") ->  | G34: =IF(G31<>"",HCDIF(G31,G32,G33),"") ->  | H34: =IF(H31<>"",HCDIF(H31,H32,H33),"") ->  | I34: =IF(I31<>"",HCDIF(I31,I32,I33),"") ->  | J34: =IF(J31<>"",HCDIF(J31,J32,J33),"") ->  | K34: =IF(K31<>"",HCDIF(K31,K32,K33),"") ->  | L34: =IF(L31<>"",HCDIF(L31,L32,L33),"") ->  | M34: =IF(M31<>"",HCDIF(M31,M32,M33),"") ->  | N34: =IF(N31<>"",HCDIF(N31,N32,N33),"") ->  | O34: =IF(O31<>"",HCDIF(O31,O32,O33),"") ->  | P34: =IF(P31<>"",HCDIF(P31,P32,P33),"") ->  | Q34: =IF(Q31<>"",HCDIF(Q31,Q32,Q33),"") ->  | R34: =IF(R31<>"",HCDIF(R31,R32,R33),"") ->  | S34: =IF(S31<>"",HCDIF(S31,S32,S33),"") ->  | T34: =IF(T31<>"",HCDIF(T31,T32,T33),"") ->  | U34: =IF(U31<>"",HCDIF(U31,U32,U33),"") ->  | V34: =IF(V31<>"",HCDIF(V31,V32,V33),"") ->  | W34: =IF(W31<>"",HCDIF(W31,W32,W33),"") ->  | X34: INDEX: | Y34: =IF(Y33<>"",HDIND(Y33),"") -> 19.2
C35: WON: | D35: 3 | X35: TOTAL: | Y35: =IF(D35<>"",SUM(D35:W35),"") -> 3
B36: =IF('SCORE CENTER'!A21<>"",'SCORE CENTER'!A21,"") -> Joe Mama | C36: SCORE: | D36: 89 | X36: COUNT: | Y36: =COUNT(D36:W36) -> 1
C37: RATING: | D37: 72.7 | X37: - | Y37: -
C38: SLOPE: | D38: 131 | X38: HDAVG: | Y38: =IF(D36<>"",Hdavg(D39:W39,Y36),"") -> 14.06030534
C39: DIFF: | D39: =IF(D36<>"",HCDIF(D36,D37,D38),"") -> 14.06030534 | E39: =IF(E36<>"",HCDIF(E36,E37,E38),"") ->  | F39: =IF(F36<>"",HCDIF(F36,F37,F38),"") ->  | G39: =IF(G36<>"",HCDIF(G36,G37,G38),"") ->  | H39: =IF(H36<>"",HCDIF(H36,H37,H38),"") ->  | I39: =IF(I36<>"",HCDIF(I36,I37,I38),"") ->  | J39: =IF(J36<>"",HCDIF(J36,J37,J38),"") ->  | K39: =IF(K36<>"",HCDIF(K36,K37,K38),"") ->  | L39: =IF(L36<>"",HCDIF(L36,L37,L38),"") ->  | M39: =IF(M36<>"",HCDIF(M36,M37,M38),"") ->  | N39: =IF(N36<>"",HCDIF(N36,N37,N38),"") ->  | O39: =IF(O36<>"",HCDIF(O36,O37,O38),"") ->  | P39: =IF(P36<>"",HCDIF(P36,P37,P38),"") ->  | Q39: =IF(Q36<>"",HCDIF(Q36,Q37,Q38),"") ->  | R39: =IF(R36<>"",HCDIF(R36,R37,R38),"") ->  | S39: =IF(S36<>"",HCDIF(S36,S37,S38),"") ->  | T39: =IF(T36<>"",HCDIF(T36,T37,T38),"") ->  | U39: =IF(U36<>"",HCDIF(U36,U37,U38),"") ->  | V39: =IF(V36<>"",HCDIF(V36,V37,V38),"") ->  | W39: =IF(W36<>"",HCDIF(W36,W37,W38),"") ->  | X39: INDEX: | Y39: =IF(Y38<>"",HDIND(Y38),"") -> 13.4
C40: WON: | D40: 5 | X40: TOTAL: | Y40: =IF(D40<>"",SUM(D40:W40),"") -> 5
B41: =IF('SCORE CENTER'!A22<>"",'SCORE CENTER'!A22,"") -> Michael Jordan | C41: SCORE: | D41: 79 | X41: COUNT: | Y41: =COUNT(D41:W41) -> 1
C42: RATING: | D42: 72.7 | X42: - | Y42: -
C43: SLOPE: | D43: 131 | X43: HDAVG: | Y43: =IF(D41<>"",Hdavg(D44:W44,Y41),"") -> 5.434351145
C44: DIFF: | D44: =IF(D41<>"",HCDIF(D41,D42,D43),"") -> 5.434351145 | E44: =IF(E41<>"",HCDIF(E41,E42,E43),"") ->  | F44: =IF(F41<>"",HCDIF(F41,F42,F43),"") ->  | G44: =IF(G41<>"",HCDIF(G41,G42,G43),"") ->  | H44: =IF(H41<>"",HCDIF(H41,H42,H43),"") ->  | I44: =IF(I41<>"",HCDIF(I41,I42,I43),"") ->  | J44: =IF(J41<>"",HCDIF(J41,J42,J43),"") ->  | K44: =IF(K41<>"",HCDIF(K41,K42,K43),"") ->  | L44: =IF(L41<>"",HCDIF(L41,L42,L43),"") ->  | M44: =IF(M41<>"",HCDIF(M41,M42,M43),"") ->  | N44: =IF(N41<>"",HCDIF(N41,N42,N43),"") ->  | O44: =IF(O41<>"",HCDIF(O41,O42,O43),"") ->  | P44: =IF(P41<>"",HCDIF(P41,P42,P43),"") ->  | Q44: =IF(Q41<>"",HCDIF(Q41,Q42,Q43),"") ->  | R44: =IF(R41<>"",HCDIF(R41,R42,R43),"") ->  | S44: =IF(S41<>"",HCDIF(S41,S42,S43),"") ->  | T44: =IF(T41<>"",HCDIF(T41,T42,T43),"") ->  | U44: =IF(U41<>"",HCDIF(U41,U42,U43),"") ->  | V44: =IF(V41<>"",HCDIF(V41,V42,V43),"") ->  | W44: =IF(W41<>"",HCDIF(W41,W42,W43),"") ->  | X44: INDEX: | Y44: =IF(Y43<>"",HDIND(Y43),"") -> 5.2
C45: WON: | D45: 4 | X45: TOTAL: | Y45: =IF(D45<>"",SUM(D45:W45),"") -> 4
B46: =IF('SCORE CENTER'!A23<>"",'SCORE CENTER'!A23,"") -> Kramer | C46: SCORE: | X46: COUNT: | Y46: =COUNT(D46:W46) -> 0
C47: RATING: | X47: - | Y47: -
C48: SLOPE: | X48: HDAVG: | Y48: =IF(D46<>"",Hdavg(D49:W49,Y46),"") -> 
C49: DIFF: | D49: =IF(D46<>"",HCDIF(D46,D47,D48),"") ->  | E49: =IF(E46<>"",HCDIF(E46,E47,E48),"") ->  | F49: =IF(F46<>"",HCDIF(F46,F47,F48),"") ->  | G49: =IF(G46<>"",HCDIF(G46,G47,G48),"") ->  | H49: =IF(H46<>"",HCDIF(H46,H47,H48),"") ->  | I49: =IF(I46<>"",HCDIF(I46,I47,I48),"") ->  | J49: =IF(J46<>"",HCDIF(J46,J47,J48),"") ->  | K49: =IF(K46<>"",HCDIF(K46,K47,K48),"") ->  | L49: =IF(L46<>"",HCDIF(L46,L47,L48),"") ->  | M49: =IF(M46<>"",HCDIF(M46,M47,M48),"") ->  | N49: =IF(N46<>"",HCDIF(N46,N47,N48),"") ->  | O49: =IF(O46<>"",HCDIF(O46,O47,O48),"") ->  | P49: =IF(P46<>"",HCDIF(P46,P47,P48),"") ->  | Q49: =IF(Q46<>"",HCDIF(Q46,Q47,Q48),"") ->  | R49: =IF(R46<>"",HCDIF(R46,R47,R48),"") ->  | S49: =IF(S46<>"",HCDIF(S46,S47,S48),"") ->  | T49: =IF(T46<>"",HCDIF(T46,T47,T48),"") ->  | U49: =IF(U46<>"",HCDIF(U46,U47,U48),"") ->  | V49: =IF(V46<>"",HCDIF(V46,V47,V48),"") ->  | W49: =IF(W46<>"",HCDIF(W46,W47,W48),"") ->  | X49: INDEX: | Y49: =IF(Y48<>"",HDIND(Y48),"") -> 
C50: WON: | X50: TOTAL: | Y50: =IF(D50<>"",SUM(D50:W50),"") -> 
B51: =IF('SCORE CENTER'!A24<>"",'SCORE CENTER'!A24,"") -> Watta Guy | C51: SCORE: | X51: COUNT: | Y51: =COUNT(D51:W51) -> 0
C52: RATING: | X52: - | Y52: -
C53: SLOPE: | X53: HDAVG: | Y53: =IF(D51<>"",Hdavg(D54:W54,Y51),"") -> 
C54: DIFF: | D54: =IF(D51<>"",HCDIF(D51,D52,D53),"") ->  | E54: =IF(E51<>"",HCDIF(E51,E52,E53),"") ->  | F54: =IF(F51<>"",HCDIF(F51,F52,F53),"") ->  | G54: =IF(G51<>"",HCDIF(G51,G52,G53),"") ->  | H54: =IF(H51<>"",HCDIF(H51,H52,H53),"") ->  | I54: =IF(I51<>"",HCDIF(I51,I52,I53),"") ->  | J54: =IF(J51<>"",HCDIF(J51,J52,J53),"") ->  | K54: =IF(K51<>"",HCDIF(K51,K52,K53),"") ->  | L54: =IF(L51<>"",HCDIF(L51,L52,L53),"") ->  | M54: =IF(M51<>"",HCDIF(M51,M52,M53),"") ->  | N54: =IF(N51<>"",HCDIF(N51,N52,N53),"") ->  | O54: =IF(O51<>"",HCDIF(O51,O52,O53),"") ->  | P54: =IF(P51<>"",HCDIF(P51,P52,P53),"") ->  | Q54: =IF(Q51<>"",HCDIF(Q51,Q52,Q53),"") ->  | R54: =IF(R51<>"",HCDIF(R51,R52,R53),"") ->  | S54: =IF(S51<>"",HCDIF(S51,S52,S53),"") ->  | T54: =IF(T51<>"",HCDIF(T51,T52,T53),"") ->  | U54: =IF(U51<>"",HCDIF(U51,U52,U53),"") ->  | V54: =IF(V51<>"",HCDIF(V51,V52,V53),"") ->  | W54: =IF(W51<>"",HCDIF(W51,W52,W53),"") ->  | X54: INDEX: | Y54: =IF(Y53<>"",HDIND(Y53),"") -> 
C55: WON: | X55: TOTAL: | Y55: =IF(D55<>"",SUM(D55:W55),"") -> 
B56: =IF('SCORE CENTER'!A25<>"",'SCORE CENTER'!A25,"") -> Posty | C56: SCORE: | X56: COUNT: | Y56: =COUNT(D56:W56) -> 0
C57: RATING: | X57: - | Y57: -
C58: SLOPE: | X58: HDAVG: | Y58: =IF(D56<>"",Hdavg(D59:W59,Y56),"") -> 
C59: DIFF: | D59: =IF(D56<>"",HCDIF(D56,D57,D58),"") ->  | E59: =IF(E56<>"",HCDIF(E56,E57,E58),"") ->  | F59: =IF(F56<>"",HCDIF(F56,F57,F58),"") ->  | G59: =IF(G56<>"",HCDIF(G56,G57,G58),"") ->  | H59: =IF(H56<>"",HCDIF(H56,H57,H58),"") ->  | I59: =IF(I56<>"",HCDIF(I56,I57,I58),"") ->  | J59: =IF(J56<>"",HCDIF(J56,J57,J58),"") ->  | K59: =IF(K56<>"",HCDIF(K56,K57,K58),"") ->  | L59: =IF(L56<>"",HCDIF(L56,L57,L58),"") ->  | M59: =IF(M56<>"",HCDIF(M56,M57,M58),"") ->  | N59: =IF(N56<>"",HCDIF(N56,N57,N58),"") ->  | O59: =IF(O56<>"",HCDIF(O56,O57,O58),"") ->  | P59: =IF(P56<>"",HCDIF(P56,P57,P58),"") ->  | Q59: =IF(Q56<>"",HCDIF(Q56,Q57,Q58),"") ->  | R59: =IF(R56<>"",HCDIF(R56,R57,R58),"") ->  | S59: =IF(S56<>"",HCDIF(S56,S57,S58),"") ->  | T59: =IF(T56<>"",HCDIF(T56,T57,T58),"") ->  | U59: =IF(U56<>"",HCDIF(U56,U57,U58),"") ->  | V59: =IF(V56<>"",HCDIF(V56,V57,V58),"") ->  | W59: =IF(W56<>"",HCDIF(W56,W57,W58),"") ->  | X59: INDEX: | Y59: =IF(Y58<>"",HDIND(Y58),"") -> 
C60: WON: | X60: TOTAL: | Y60: =IF(D60<>"",SUM(D60:W60),"") -> 
B61: =IF('SCORE CENTER'!#REF!<>"",'SCORE CENTER'!#REF!,"") ->  | C61: SCORE: | X61: COUNT: | Y61: =COUNT(D61:W61) -> 0
C62: RATING: | X62: - | Y62: -
C63: SLOPE: | X63: HDAVG: | Y63: =IF(D61<>"",Hdavg(D64:W64,Y61),"") -> 
C64: DIFF: | D64: =IF(D61<>"",HCDIF(D61,D62,D63),"") ->  | E64: =IF(E61<>"",HCDIF(E61,E62,E63),"") ->  | F64: =IF(F61<>"",HCDIF(F61,F62,F63),"") ->  | G64: =IF(G61<>"",HCDIF(G61,G62,G63),"") ->  | H64: =IF(H61<>"",HCDIF(H61,H62,H63),"") ->  | I64: =IF(I61<>"",HCDIF(I61,I62,I63),"") ->  | J64: =IF(J61<>"",HCDIF(J61,J62,J63),"") ->  | K64: =IF(K61<>"",HCDIF(K61,K62,K63),"") ->  | L64: =IF(L61<>"",HCDIF(L61,L62,L63),"") ->  | M64: =IF(M61<>"",HCDIF(M61,M62,M63),"") ->  | N64: =IF(N61<>"",HCDIF(N61,N62,N63),"") ->  | O64: =IF(O61<>"",HCDIF(O61,O62,O63),"") ->  | P64: =IF(P61<>"",HCDIF(P61,P62,P63),"") ->  | Q64: =IF(Q61<>"",HCDIF(Q61,Q62,Q63),"") ->  | R64: =IF(R61<>"",HCDIF(R61,R62,R63),"") ->  | S64: =IF(S61<>"",HCDIF(S61,S62,S63),"") ->  | T64: =IF(T61<>"",HCDIF(T61,T62,T63),"") ->  | U64: =IF(U61<>"",HCDIF(U61,U62,U63),"") ->  | V64: =IF(V61<>"",HCDIF(V61,V62,V63),"") ->  | W64: =IF(W61<>"",HCDIF(W61,W62,W63),"") ->  | X64: INDEX: | Y64: =IF(Y63<>"",HDIND(Y63),"") -> 
C65: WON: | X65: TOTAL: | Y65: =IF(D65<>"",SUM(D65:W65),"") -> 
B66: =IF('SCORE CENTER'!A26<>"",'SCORE CENTER'!A26,"") ->  | C66: SCORE: | X66: COUNT: | Y66: =COUNT(D66:W66) -> 0
C67: RATING: | X67: - | Y67: -
C68: SLOPE: | X68: HDAVG: | Y68: =IF(D66<>"",Hdavg(D69:W69,Y66),"") -> 
C69: DIFF: | D69: =IF(D66<>"",HCDIF(D66,D67,D68),"") ->  | E69: =IF(E66<>"",HCDIF(E66,E67,E68),"") ->  | F69: =IF(F66<>"",HCDIF(F66,F67,F68),"") ->  | G69: =IF(G66<>"",HCDIF(G66,G67,G68),"") ->  | H69: =IF(H66<>"",HCDIF(H66,H67,H68),"") ->  | I69: =IF(I66<>"",HCDIF(I66,I67,I68),"") ->  | J69: =IF(J66<>"",HCDIF(J66,J67,J68),"") ->  | K69: =IF(K66<>"",HCDIF(K66,K67,K68),"") ->  | L69: =IF(L66<>"",HCDIF(L66,L67,L68),"") ->  | M69: =IF(M66<>"",HCDIF(M66,M67,M68),"") ->  | N69: =IF(N66<>"",HCDIF(N66,N67,N68),"") ->  | O69: =IF(O66<>"",HCDIF(O66,O67,O68),"") ->  | P69: =IF(P66<>"",HCDIF(P66,P67,P68),"") ->  | Q69: =IF(Q66<>"",HCDIF(Q66,Q67,Q68),"") ->  | R69: =IF(R66<>"",HCDIF(R66,R67,R68),"") ->  | S69: =IF(S66<>"",HCDIF(S66,S67,S68),"") ->  | T69: =IF(T66<>"",HCDIF(T66,T67,T68),"") ->  | U69: =IF(U66<>"",HCDIF(U66,U67,U68),"") ->  | V69: =IF(V66<>"",HCDIF(V66,V67,V68),"") ->  | W69: =IF(W66<>"",HCDIF(W66,W67,W68),"") ->  | X69: INDEX: | Y69: =IF(Y68<>"",HDIND(Y68),"") -> 
C70: WON: | X70: TOTAL: | Y70: =IF(D70<>"",SUM(D70:W70),"") -> 
B71: =IF('SCORE CENTER'!A27<>"",'SCORE CENTER'!A27,"") ->  | C71: SCORE: | X71: COUNT: | Y71: =COUNT(D71:W71) -> 0
C72: RATING: | X72: - | Y72: -
C73: SLOPE: | X73: HDAVG: | Y73: =IF(D71<>"",Hdavg(D74:W74,Y71),"") -> 
C74: DIFF: | D74: =IF(D71<>"",HCDIF(D71,D72,D73),"") ->  | E74: =IF(E71<>"",HCDIF(E71,E72,E73),"") ->  | F74: =IF(F71<>"",HCDIF(F71,F72,F73),"") ->  | G74: =IF(G71<>"",HCDIF(G71,G72,G73),"") ->  | H74: =IF(H71<>"",HCDIF(H71,H72,H73),"") ->  | I74: =IF(I71<>"",HCDIF(I71,I72,I73),"") ->  | J74: =IF(J71<>"",HCDIF(J71,J72,J73),"") ->  | K74: =IF(K71<>"",HCDIF(K71,K72,K73),"") ->  | L74: =IF(L71<>"",HCDIF(L71,L72,L73),"") ->  | M74: =IF(M71<>"",HCDIF(M71,M72,M73),"") ->  | N74: =IF(N71<>"",HCDIF(N71,N72,N73),"") ->  | O74: =IF(O71<>"",HCDIF(O71,O72,O73),"") ->  | P74: =IF(P71<>"",HCDIF(P71,P72,P73),"") ->  | Q74: =IF(Q71<>"",HCDIF(Q71,Q72,Q73),"") ->  | R74: =IF(R71<>"",HCDIF(R71,R72,R73),"") ->  | S74: =IF(S71<>"",HCDIF(S71,S72,S73),"") ->  | T74: =IF(T71<>"",HCDIF(T71,T72,T73),"") ->  | U74: =IF(U71<>"",HCDIF(U71,U72,U73),"") ->  | V74: =IF(V71<>"",HCDIF(V71,V72,V73),"") ->  | W74: =IF(W71<>"",HCDIF(W71,W72,W73),"") ->  | X74: INDEX: | Y74: =IF(Y73<>"",HDIND(Y73),"") -> 
C75: WON: | X75: TOTAL: | Y75: =IF(D75<>"",SUM(D75:W75),"") -> 
B76: =IF('SCORE CENTER'!A28<>"",'SCORE CENTER'!A28,"") ->  | C76: SCORE: | X76: COUNT: | Y76: =COUNT(D76:W76) -> 0
C77: RATING: | X77: - | Y77: -
C78: SLOPE: | X78: HDAVG: | Y78: =IF(D76<>"",Hdavg(D79:W79,Y76),"") -> 
C79: DIFF: | D79: =IF(D76<>"",HCDIF(D76,D77,D78),"") ->  | E79: =IF(E76<>"",HCDIF(E76,E77,E78),"") ->  | F79: =IF(F76<>"",HCDIF(F76,F77,F78),"") ->  | G79: =IF(G76<>"",HCDIF(G76,G77,G78),"") ->  | H79: =IF(H76<>"",HCDIF(H76,H77,H78),"") ->  | I79: =IF(I76<>"",HCDIF(I76,I77,I78),"") ->  | J79: =IF(J76<>"",HCDIF(J76,J77,J78),"") ->  | K79: =IF(K76<>"",HCDIF(K76,K77,K78),"") ->  | L79: =IF(L76<>"",HCDIF(L76,L77,L78),"") ->  | M79: =IF(M76<>"",HCDIF(M76,M77,M78),"") ->  | N79: =IF(N76<>"",HCDIF(N76,N77,N78),"") ->  | O79: =IF(O76<>"",HCDIF(O76,O77,O78),"") ->  | P79: =IF(P76<>"",HCDIF(P76,P77,P78),"") ->  | Q79: =IF(Q76<>"",HCDIF(Q76,Q77,Q78),"") ->  | R79: =IF(R76<>"",HCDIF(R76,R77,R78),"") ->  | S79: =IF(S76<>"",HCDIF(S76,S77,S78),"") ->  | T79: =IF(T76<>"",HCDIF(T76,T77,T78),"") ->  | U79: =IF(U76<>"",HCDIF(U76,U77,U78),"") ->  | V79: =IF(V76<>"",HCDIF(V76,V77,V78),"") ->  | W79: =IF(W76<>"",HCDIF(W76,W77,W78),"") ->  | X79: INDEX: | Y79: =IF(Y78<>"",HDIND(Y78),"") -> 
C80: WON: | X80: TOTAL: | Y80: =IF(D80<>"",SUM(D80:W80),"") -> 
B81: =IF('SCORE CENTER'!A29<>"",'SCORE CENTER'!A29,"") ->  | C81: SCORE: | X81: COUNT: | Y81: =COUNT(D81:W81) -> 0
C82: RATING: | X82: - | Y82: -
C83: SLOPE: | X83: HDAVG: | Y83: =IF(D81<>"",Hdavg(D84:W84,Y81),"") -> 
C84: DIFF: | D84: =IF(D81<>"",HCDIF(D81,D82,D83),"") ->  | E84: =IF(E81<>"",HCDIF(E81,E82,E83),"") ->  | F84: =IF(F81<>"",HCDIF(F81,F82,F83),"") ->  | G84: =IF(G81<>"",HCDIF(G81,G82,G83),"") ->  | H84: =IF(H81<>"",HCDIF(H81,H82,H83),"") ->  | I84: =IF(I81<>"",HCDIF(I81,I82,I83),"") ->  | J84: =IF(J81<>"",HCDIF(J81,J82,J83),"") ->  | K84: =IF(K81<>"",HCDIF(K81,K82,K83),"") ->  | L84: =IF(L81<>"",HCDIF(L81,L82,L83),"") ->  | M84: =IF(M81<>"",HCDIF(M81,M82,M83),"") ->  | N84: =IF(N81<>"",HCDIF(N81,N82,N83),"") ->  | O84: =IF(O81<>"",HCDIF(O81,O82,O83),"") ->  | P84: =IF(P81<>"",HCDIF(P81,P82,P83),"") ->  | Q84: =IF(Q81<>"",HCDIF(Q81,Q82,Q83),"") ->  | R84: =IF(R81<>"",HCDIF(R81,R82,R83),"") ->  | S84: =IF(S81<>"",HCDIF(S81,S82,S83),"") ->  | T84: =IF(T81<>"",HCDIF(T81,T82,T83),"") ->  | U84: =IF(U81<>"",HCDIF(U81,U82,U83),"") ->  | V84: =IF(V81<>"",HCDIF(V81,V82,V83),"") ->  | W84: =IF(W81<>"",HCDIF(W81,W82,W83),"") ->  | X84: INDEX: | Y84: =IF(Y83<>"",HDIND(Y83),"") -> 
C85: WON: | X85: TOTAL: | Y85: =IF(D85<>"",SUM(D85:W85),"") -> 
B86: =IF('SCORE CENTER'!A30<>"",'SCORE CENTER'!A30,"") ->  | C86: SCORE: | X86: COUNT: | Y86: =COUNT(D86:W86) -> 0
C87: RATING: | X87: - | Y87: -
C88: SLOPE: | X88: HDAVG: | Y88: =IF(D86<>"",Hdavg(D89:W89,Y86),"") -> 
C89: DIFF: | D89: =IF(D86<>"",HCDIF(D86,D87,D88),"") ->  | E89: =IF(E86<>"",HCDIF(E86,E87,E88),"") ->  | F89: =IF(F86<>"",HCDIF(F86,F87,F88),"") ->  | G89: =IF(G86<>"",HCDIF(G86,G87,G88),"") ->  | H89: =IF(H86<>"",HCDIF(H86,H87,H88),"") ->  | I89: =IF(I86<>"",HCDIF(I86,I87,I88),"") ->  | J89: =IF(J86<>"",HCDIF(J86,J87,J88),"") ->  | K89: =IF(K86<>"",HCDIF(K86,K87,K88),"") ->  | L89: =IF(L86<>"",HCDIF(L86,L87,L88),"") ->  | M89: =IF(M86<>"",HCDIF(M86,M87,M88),"") ->  | N89: =IF(N86<>"",HCDIF(N86,N87,N88),"") ->  | O89: =IF(O86<>"",HCDIF(O86,O87,O88),"") ->  | P89: =IF(P86<>"",HCDIF(P86,P87,P88),"") ->  | Q89: =IF(Q86<>"",HCDIF(Q86,Q87,Q88),"") ->  | R89: =IF(R86<>"",HCDIF(R86,R87,R88),"") ->  | S89: =IF(S86<>"",HCDIF(S86,S87,S88),"") ->  | T89: =IF(T86<>"",HCDIF(T86,T87,T88),"") ->  | U89: =IF(U86<>"",HCDIF(U86,U87,U88),"") ->  | V89: =IF(V86<>"",HCDIF(V86,V87,V88),"") ->  | W89: =IF(W86<>"",HCDIF(W86,W87,W88),"") ->  | X89: INDEX: | Y89: =IF(Y88<>"",HDIND(Y88),"") -> 
C90: WON: | X90: TOTAL: | Y90: =IF(D90<>"",SUM(D90:W90),"") -> 
B91: =IF('SCORE CENTER'!A31<>"",'SCORE CENTER'!A31,"") ->  | C91: SCORE: | X91: COUNT: | Y91: =COUNT(D91:W91) -> 0
C92: RATING: | X92: - | Y92: -
C93: SLOPE: | X93: HDAVG: | Y93: =IF(D91<>"",Hdavg(D94:W94,Y91),"") -> 
C94: DIFF: | D94: =IF(D91<>"",HCDIF(D91,D92,D93),"") ->  | E94: =IF(E91<>"",HCDIF(E91,E92,E93),"") ->  | F94: =IF(F91<>"",HCDIF(F91,F92,F93),"") ->  | G94: =IF(G91<>"",HCDIF(G91,G92,G93),"") ->  | H94: =IF(H91<>"",HCDIF(H91,H92,H93),"") ->  | I94: =IF(I91<>"",HCDIF(I91,I92,I93),"") ->  | J94: =IF(J91<>"",HCDIF(J91,J92,J93),"") ->  | K94: =IF(K91<>"",HCDIF(K91,K92,K93),"") ->  | L94: =IF(L91<>"",HCDIF(L91,L92,L93),"") ->  | M94: =IF(M91<>"",HCDIF(M91,M92,M93),"") ->  | N94: =IF(N91<>"",HCDIF(N91,N92,N93),"") ->  | O94: =IF(O91<>"",HCDIF(O91,O92,O93),"") ->  | P94: =IF(P91<>"",HCDIF(P91,P92,P93),"") ->  | Q94: =IF(Q91<>"",HCDIF(Q91,Q92,Q93),"") ->  | R94: =IF(R91<>"",HCDIF(R91,R92,R93),"") ->  | S94: =IF(S91<>"",HCDIF(S91,S92,S93),"") ->  | T94: =IF(T91<>"",HCDIF(T91,T92,T93),"") ->  | U94: =IF(U91<>"",HCDIF(U91,U92,U93),"") ->  | V94: =IF(V91<>"",HCDIF(V91,V92,V93),"") ->  | W94: =IF(W91<>"",HCDIF(W91,W92,W93),"") ->  | X94: INDEX: | Y94: =IF(Y93<>"",HDIND(Y93),"") -> 
C95: WON: | X95: TOTAL: | Y95: =IF(D95<>"",SUM(D95:W95),"") -> 
B96: =IF('SCORE CENTER'!A32<>"",'SCORE CENTER'!A32,"") ->  | C96: SCORE: | X96: COUNT: | Y96: =COUNT(D96:W96) -> 0
C97: RATING: | X97: - | Y97: -
C98: SLOPE: | X98: HDAVG: | Y98: =IF(D96<>"",Hdavg(D99:W99,Y96),"") -> 
C99: DIFF: | D99: =IF(D96<>"",HCDIF(D96,D97,D98),"") ->  | E99: =IF(E96<>"",HCDIF(E96,E97,E98),"") ->  | F99: =IF(F96<>"",HCDIF(F96,F97,F98),"") ->  | G99: =IF(G96<>"",HCDIF(G96,G97,G98),"") ->  | H99: =IF(H96<>"",HCDIF(H96,H97,H98),"") ->  | I99: =IF(I96<>"",HCDIF(I96,I97,I98),"") ->  | J99: =IF(J96<>"",HCDIF(J96,J97,J98),"") ->  | K99: =IF(K96<>"",HCDIF(K96,K97,K98),"") ->  | L99: =IF(L96<>"",HCDIF(L96,L97,L98),"") ->  | M99: =IF(M96<>"",HCDIF(M96,M97,M98),"") ->  | N99: =IF(N96<>"",HCDIF(N96,N97,N98),"") ->  | O99: =IF(O96<>"",HCDIF(O96,O97,O98),"") ->  | P99: =IF(P96<>"",HCDIF(P96,P97,P98),"") ->  | Q99: =IF(Q96<>"",HCDIF(Q96,Q97,Q98),"") ->  | R99: =IF(R96<>"",HCDIF(R96,R97,R98),"") ->  | S99: =IF(S96<>"",HCDIF(S96,S97,S98),"") ->  | T99: =IF(T96<>"",HCDIF(T96,T97,T98),"") ->  | U99: =IF(U96<>"",HCDIF(U96,U97,U98),"") ->  | V99: =IF(V96<>"",HCDIF(V96,V97,V98),"") ->  | W99: =IF(W96<>"",HCDIF(W96,W97,W98),"") ->  | X99: INDEX: | Y99: =IF(Y98<>"",HDIND(Y98),"") -> 
C100: WON: | X100: TOTAL: | Y100: =IF(D100<>"",SUM(D100:W100),"") -> 
B101: =IF('SCORE CENTER'!A33<>"",'SCORE CENTER'!A33,"") ->  | C101: SCORE: | X101: COUNT: | Y101: =COUNT(D101:W101) -> 0
C102: RATING: | X102: - | Y102: -
C103: SLOPE: | X103: HDAVG: | Y103: =IF(D101<>"",Hdavg(D104:W104,Y101),"") -> 
C104: DIFF: | D104: =IF(D101<>"",HCDIF(D101,D102,D103),"") ->  | E104: =IF(E101<>"",HCDIF(E101,E102,E103),"") ->  | F104: =IF(F101<>"",HCDIF(F101,F102,F103),"") ->  | G104: =IF(G101<>"",HCDIF(G101,G102,G103),"") ->  | H104: =IF(H101<>"",HCDIF(H101,H102,H103),"") ->  | I104: =IF(I101<>"",HCDIF(I101,I102,I103),"") ->  | J104: =IF(J101<>"",HCDIF(J101,J102,J103),"") ->  | K104: =IF(K101<>"",HCDIF(K101,K102,K103),"") ->  | L104: =IF(L101<>"",HCDIF(L101,L102,L103),"") ->  | M104: =IF(M101<>"",HCDIF(M101,M102,M103),"") ->  | N104: =IF(N101<>"",HCDIF(N101,N102,N103),"") ->  | O104: =IF(O101<>"",HCDIF(O101,O102,O103),"") ->  | P104: =IF(P101<>"",HCDIF(P101,P102,P103),"") ->  | Q104: =IF(Q101<>"",HCDIF(Q101,Q102,Q103),"") ->  | R104: =IF(R101<>"",HCDIF(R101,R102,R103),"") ->  | S104: =IF(S101<>"",HCDIF(S101,S102,S103),"") ->  | T104: =IF(T101<>"",HCDIF(T101,T102,T103),"") ->  | U104: =IF(U101<>"",HCDIF(U101,U102,U103),"") ->  | V104: =IF(V101<>"",HCDIF(V101,V102,V103),"") ->  | W104: =IF(W101<>"",HCDIF(W101,W102,W103),"") ->  | X104: INDEX: | Y104: =IF(Y103<>"",HDIND(Y103),"") -> 
C105: WON: | X105: TOTAL: | Y105: =IF(D105<>"",SUM(D105:W105),"") -> 
B106: =IF('SCORE CENTER'!A34<>"",'SCORE CENTER'!A34,"") ->  | C106: SCORE: | X106: COUNT: | Y106: =COUNT(D106:W106) -> 0
C107: RATING: | X107: - | Y107: -
C108: SLOPE: | X108: HDAVG: | Y108: =IF(D106<>"",Hdavg(D109:W109,Y106),"") -> 
C109: DIFF: | D109: =IF(D106<>"",HCDIF(D106,D107,D108),"") ->  | E109: =IF(E106<>"",HCDIF(E106,E107,E108),"") ->  | F109: =IF(F106<>"",HCDIF(F106,F107,F108),"") ->  | G109: =IF(G106<>"",HCDIF(G106,G107,G108),"") ->  | H109: =IF(H106<>"",HCDIF(H106,H107,H108),"") ->  | I109: =IF(I106<>"",HCDIF(I106,I107,I108),"") ->  | J109: =IF(J106<>"",HCDIF(J106,J107,J108),"") ->  | K109: =IF(K106<>"",HCDIF(K106,K107,K108),"") ->  | L109: =IF(L106<>"",HCDIF(L106,L107,L108),"") ->  | M109: =IF(M106<>"",HCDIF(M106,M107,M108),"") ->  | N109: =IF(N106<>"",HCDIF(N106,N107,N108),"") ->  | O109: =IF(O106<>"",HCDIF(O106,O107,O108),"") ->  | P109: =IF(P106<>"",HCDIF(P106,P107,P108),"") ->  | Q109: =IF(Q106<>"",HCDIF(Q106,Q107,Q108),"") ->  | R109: =IF(R106<>"",HCDIF(R106,R107,R108),"") ->  | S109: =IF(S106<>"",HCDIF(S106,S107,S108),"") ->  | T109: =IF(T106<>"",HCDIF(T106,T107,T108),"") ->  | U109: =IF(U106<>"",HCDIF(U106,U107,U108),"") ->  | V109: =IF(V106<>"",HCDIF(V106,V107,V108),"") ->  | W109: =IF(W106<>"",HCDIF(W106,W107,W108),"") ->  | X109: INDEX: | Y109: =IF(Y108<>"",HDIND(Y108),"") -> 
C110: WON: | X110: TOTAL: | Y110: =IF(D110<>"",SUM(D110:W110),"") -> 
B111: =IF('SCORE CENTER'!A35<>"",'SCORE CENTER'!A35,"") ->  | C111: SCORE: | X111: COUNT: | Y111: =COUNT(D111:W111) -> 0
C112: RATING: | X112: - | Y112: -
C113: SLOPE: | X113: HDAVG: | Y113: =IF(D111<>"",Hdavg(D114:W114,Y111),"") -> 
C114: DIFF: | D114: =IF(D111<>"",HCDIF(D111,D112,D113),"") ->  | E114: =IF(E111<>"",HCDIF(E111,E112,E113),"") ->  | F114: =IF(F111<>"",HCDIF(F111,F112,F113),"") ->  | G114: =IF(G111<>"",HCDIF(G111,G112,G113),"") ->  | H114: =IF(H111<>"",HCDIF(H111,H112,H113),"") ->  | I114: =IF(I111<>"",HCDIF(I111,I112,I113),"") ->  | J114: =IF(J111<>"",HCDIF(J111,J112,J113),"") ->  | K114: =IF(K111<>"",HCDIF(K111,K112,K113),"") ->  | L114: =IF(L111<>"",HCDIF(L111,L112,L113),"") ->  | M114: =IF(M111<>"",HCDIF(M111,M112,M113),"") ->  | N114: =IF(N111<>"",HCDIF(N111,N112,N113),"") ->  | O114: =IF(O111<>"",HCDIF(O111,O112,O113),"") ->  | P114: =IF(P111<>"",HCDIF(P111,P112,P113),"") ->  | Q114: =IF(Q111<>"",HCDIF(Q111,Q112,Q113),"") ->  | R114: =IF(R111<>"",HCDIF(R111,R112,R113),"") ->  | S114: =IF(S111<>"",HCDIF(S111,S112,S113),"") ->  | T114: =IF(T111<>"",HCDIF(T111,T112,T113),"") ->  | U114: =IF(U111<>"",HCDIF(U111,U112,U113),"") ->  | V114: =IF(V111<>"",HCDIF(V111,V112,V113),"") ->  | W114: =IF(W111<>"",HCDIF(W111,W112,W113),"") ->  | X114: INDEX: | Y114: =IF(Y113<>"",HDIND(Y113),"") -> 
C115: WON: | X115: TOTAL: | Y115: =IF(D115<>"",SUM(D115:W115),"") -> 
B116: =IF('SCORE CENTER'!A36<>"",'SCORE CENTER'!A36,"") ->  | C116: SCORE: | X116: COUNT: | Y116: =COUNT(D116:W116) -> 0
C117: RATING: | X117: - | Y117: -
C118: SLOPE: | X118: HDAVG: | Y118: =IF(D116<>"",Hdavg(D119:W119,Y116),"") -> 
C119: DIFF: | D119: =IF(D116<>"",HCDIF(D116,D117,D118),"") ->  | E119: =IF(E116<>"",HCDIF(E116,E117,E118),"") ->  | F119: =IF(F116<>"",HCDIF(F116,F117,F118),"") ->  | G119: =IF(G116<>"",HCDIF(G116,G117,G118),"") ->  | H119: =IF(H116<>"",HCDIF(H116,H117,H118),"") ->  | I119: =IF(I116<>"",HCDIF(I116,I117,I118),"") ->  | J119: =IF(J116<>"",HCDIF(J116,J117,J118),"") ->  | K119: =IF(K116<>"",HCDIF(K116,K117,K118),"") ->  | L119: =IF(L116<>"",HCDIF(L116,L117,L118),"") ->  | M119: =IF(M116<>"",HCDIF(M116,M117,M118),"") ->  | N119: =IF(N116<>"",HCDIF(N116,N117,N118),"") ->  | O119: =IF(O116<>"",HCDIF(O116,O117,O118),"") ->  | P119: =IF(P116<>"",HCDIF(P116,P117,P118),"") ->  | Q119: =IF(Q116<>"",HCDIF(Q116,Q117,Q118),"") ->  | R119: =IF(R116<>"",HCDIF(R116,R117,R118),"") ->  | S119: =IF(S116<>"",HCDIF(S116,S117,S118),"") ->  | T119: =IF(T116<>"",HCDIF(T116,T117,T118),"") ->  | U119: =IF(U116<>"",HCDIF(U116,U117,U118),"") ->  | V119: =IF(V116<>"",HCDIF(V116,V117,V118),"") ->  | W119: =IF(W116<>"",HCDIF(W116,W117,W118),"") ->  | X119: INDEX: | Y119: =IF(Y118<>"",HDIND(Y118),"") -> 
C120: WON: | X120: TOTAL: | Y120: =IF(D120<>"",SUM(D120:W120),"") -> 
B121: =IF('SCORE CENTER'!A37<>"",'SCORE CENTER'!A37,"") ->  | C121: SCORE: | X121: COUNT: | Y121: =COUNT(D121:W121) -> 0
C122: RATING: | X122: - | Y122: -
C123: SLOPE: | X123: HDAVG: | Y123: =IF(D121<>"",Hdavg(D124:W124,Y121),"") -> 
C124: DIFF: | D124: =IF(D121<>"",HCDIF(D121,D122,D123),"") ->  | E124: =IF(E121<>"",HCDIF(E121,E122,E123),"") ->  | F124: =IF(F121<>"",HCDIF(F121,F122,F123),"") ->  | G124: =IF(G121<>"",HCDIF(G121,G122,G123),"") ->  | H124: =IF(H121<>"",HCDIF(H121,H122,H123),"") ->  | I124: =IF(I121<>"",HCDIF(I121,I122,I123),"") ->  | J124: =IF(J121<>"",HCDIF(J121,J122,J123),"") ->  | K124: =IF(K121<>"",HCDIF(K121,K122,K123),"") ->  | L124: =IF(L121<>"",HCDIF(L121,L122,L123),"") ->  | M124: =IF(M121<>"",HCDIF(M121,M122,M123),"") ->  | N124: =IF(N121<>"",HCDIF(N121,N122,N123),"") ->  | O124: =IF(O121<>"",HCDIF(O121,O122,O123),"") ->  | P124: =IF(P121<>"",HCDIF(P121,P122,P123),"") ->  | Q124: =IF(Q121<>"",HCDIF(Q121,Q122,Q123),"") ->  | R124: =IF(R121<>"",HCDIF(R121,R122,R123),"") ->  | S124: =IF(S121<>"",HCDIF(S121,S122,S123),"") ->  | T124: =IF(T121<>"",HCDIF(T121,T122,T123),"") ->  | U124: =IF(U121<>"",HCDIF(U121,U122,U123),"") ->  | V124: =IF(V121<>"",HCDIF(V121,V122,V123),"") ->  | W124: =IF(W121<>"",HCDIF(W121,W122,W123),"") ->  | X124: INDEX: | Y124: =IF(Y123<>"",HDIND(Y123),"") -> 
C125: WON: | X125: TOTAL: | Y125: =IF(D125<>"",SUM(D125:W125),"") -> 
B126: =IF('SCORE CENTER'!A38<>"",'SCORE CENTER'!A38,"") ->  | C126: SCORE: | X126: COUNT: | Y126: =COUNT(D126:W126) -> 0
C127: RATING: | X127: - | Y127: -
C128: SLOPE: | X128: HDAVG: | Y128: =IF(D126<>"",Hdavg(D129:W129,Y126),"") -> 
C129: DIFF: | D129: =IF(D126<>"",HCDIF(D126,D127,D128),"") ->  | E129: =IF(E126<>"",HCDIF(E126,E127,E128),"") ->  | F129: =IF(F126<>"",HCDIF(F126,F127,F128),"") ->  | G129: =IF(G126<>"",HCDIF(G126,G127,G128),"") ->  | H129: =IF(H126<>"",HCDIF(H126,H127,H128),"") ->  | I129: =IF(I126<>"",HCDIF(I126,I127,I128),"") ->  | J129: =IF(J126<>"",HCDIF(J126,J127,J128),"") ->  | K129: =IF(K126<>"",HCDIF(K126,K127,K128),"") ->  | L129: =IF(L126<>"",HCDIF(L126,L127,L128),"") ->  | M129: =IF(M126<>"",HCDIF(M126,M127,M128),"") ->  | N129: =IF(N126<>"",HCDIF(N126,N127,N128),"") ->  | O129: =IF(O126<>"",HCDIF(O126,O127,O128),"") ->  | P129: =IF(P126<>"",HCDIF(P126,P127,P128),"") ->  | Q129: =IF(Q126<>"",HCDIF(Q126,Q127,Q128),"") ->  | R129: =IF(R126<>"",HCDIF(R126,R127,R128),"") ->  | S129: =IF(S126<>"",HCDIF(S126,S127,S128),"") ->  | T129: =IF(T126<>"",HCDIF(T126,T127,T128),"") ->  | U129: =IF(U126<>"",HCDIF(U126,U127,U128),"") ->  | V129: =IF(V126<>"",HCDIF(V126,V127,V128),"") ->  | W129: =IF(W126<>"",HCDIF(W126,W127,W128),"") ->  | X129: INDEX: | Y129: =IF(Y128<>"",HDIND(Y128),"") -> 
C130: WON: | X130: TOTAL: | Y130: =IF(D130<>"",SUM(D130:W130),"") -> 
B131: =IF('SCORE CENTER'!A39<>"",'SCORE CENTER'!A39,"") ->  | C131: SCORE: | X131: COUNT: | Y131: =COUNT(D131:W131) -> 0
C132: RATING: | X132: - | Y132: -
C133: SLOPE: | X133: HDAVG: | Y133: =IF(D131<>"",Hdavg(D134:W134,Y131),"") -> 
C134: DIFF: | D134: =IF(D131<>"",HCDIF(D131,D132,D133),"") ->  | E134: =IF(E131<>"",HCDIF(E131,E132,E133),"") ->  | F134: =IF(F131<>"",HCDIF(F131,F132,F133),"") ->  | G134: =IF(G131<>"",HCDIF(G131,G132,G133),"") ->  | H134: =IF(H131<>"",HCDIF(H131,H132,H133),"") ->  | I134: =IF(I131<>"",HCDIF(I131,I132,I133),"") ->  | J134: =IF(J131<>"",HCDIF(J131,J132,J133),"") ->  | K134: =IF(K131<>"",HCDIF(K131,K132,K133),"") ->  | L134: =IF(L131<>"",HCDIF(L131,L132,L133),"") ->  | M134: =IF(M131<>"",HCDIF(M131,M132,M133),"") ->  | N134: =IF(N131<>"",HCDIF(N131,N132,N133),"") ->  | O134: =IF(O131<>"",HCDIF(O131,O132,O133),"") ->  | P134: =IF(P131<>"",HCDIF(P131,P132,P133),"") ->  | Q134: =IF(Q131<>"",HCDIF(Q131,Q132,Q133),"") ->  | R134: =IF(R131<>"",HCDIF(R131,R132,R133),"") ->  | S134: =IF(S131<>"",HCDIF(S131,S132,S133),"") ->  | T134: =IF(T131<>"",HCDIF(T131,T132,T133),"") ->  | U134: =IF(U131<>"",HCDIF(U131,U132,U133),"") ->  | V134: =IF(V131<>"",HCDIF(V131,V132,V133),"") ->  | W134: =IF(W131<>"",HCDIF(W131,W132,W133),"") ->  | X134: INDEX: | Y134: =IF(Y133<>"",HDIND(Y133),"") -> 
C135: WON: | X135: TOTAL: | Y135: =IF(D135<>"",SUM(D135:W135),"") -> 
B136: =IF('SCORE CENTER'!A40<>"",'SCORE CENTER'!A40,"") ->  | C136: SCORE: | X136: COUNT: | Y136: =COUNT(D136:W136) -> 0
C137: RATING: | X137: - | Y137: -
C138: SLOPE: | X138: HDAVG: | Y138: =IF(D136<>"",Hdavg(D139:W139,Y136),"") -> 
C139: DIFF: | D139: =IF(D136<>"",HCDIF(D136,D137,D138),"") ->  | E139: =IF(E136<>"",HCDIF(E136,E137,E138),"") ->  | F139: =IF(F136<>"",HCDIF(F136,F137,F138),"") ->  | G139: =IF(G136<>"",HCDIF(G136,G137,G138),"") ->  | H139: =IF(H136<>"",HCDIF(H136,H137,H138),"") ->  | I139: =IF(I136<>"",HCDIF(I136,I137,I138),"") ->  | J139: =IF(J136<>"",HCDIF(J136,J137,J138),"") ->  | K139: =IF(K136<>"",HCDIF(K136,K137,K138),"") ->  | L139: =IF(L136<>"",HCDIF(L136,L137,L138),"") ->  | M139: =IF(M136<>"",HCDIF(M136,M137,M138),"") ->  | N139: =IF(N136<>"",HCDIF(N136,N137,N138),"") ->  | O139: =IF(O136<>"",HCDIF(O136,O137,O138),"") ->  | P139: =IF(P136<>"",HCDIF(P136,P137,P138),"") ->  | Q139: =IF(Q136<>"",HCDIF(Q136,Q137,Q138),"") ->  | R139: =IF(R136<>"",HCDIF(R136,R137,R138),"") ->  | S139: =IF(S136<>"",HCDIF(S136,S137,S138),"") ->  | T139: =IF(T136<>"",HCDIF(T136,T137,T138),"") ->  | U139: =IF(U136<>"",HCDIF(U136,U137,U138),"") ->  | V139: =IF(V136<>"",HCDIF(V136,V137,V138),"") ->  | W139: =IF(W136<>"",HCDIF(W136,W137,W138),"") ->  | X139: INDEX: | Y139: =IF(Y138<>"",HDIND(Y138),"") -> 
C140: WON: | X140: TOTAL: | Y140: =IF(D140<>"",SUM(D140:W140),"") -> 
B141: =IF('SCORE CENTER'!A41<>"",'SCORE CENTER'!A41,"") ->  | C141: SCORE: | X141: COUNT: | Y141: =COUNT(D141:W141) -> 0
C142: RATING: | X142: - | Y142: -
C143: SLOPE: | X143: HDAVG: | Y143: =IF(D141<>"",Hdavg(D144:W144,Y141),"") -> 
C144: DIFF: | D144: =IF(D141<>"",HCDIF(D141,D142,D143),"") ->  | E144: =IF(E141<>"",HCDIF(E141,E142,E143),"") ->  | F144: =IF(F141<>"",HCDIF(F141,F142,F143),"") ->  | G144: =IF(G141<>"",HCDIF(G141,G142,G143),"") ->  | H144: =IF(H141<>"",HCDIF(H141,H142,H143),"") ->  | I144: =IF(I141<>"",HCDIF(I141,I142,I143),"") ->  | J144: =IF(J141<>"",HCDIF(J141,J142,J143),"") ->  | K144: =IF(K141<>"",HCDIF(K141,K142,K143),"") ->  | L144: =IF(L141<>"",HCDIF(L141,L142,L143),"") ->  | M144: =IF(M141<>"",HCDIF(M141,M142,M143),"") ->  | N144: =IF(N141<>"",HCDIF(N141,N142,N143),"") ->  | O144: =IF(O141<>"",HCDIF(O141,O142,O143),"") ->  | P144: =IF(P141<>"",HCDIF(P141,P142,P143),"") ->  | Q144: =IF(Q141<>"",HCDIF(Q141,Q142,Q143),"") ->  | R144: =IF(R141<>"",HCDIF(R141,R142,R143),"") ->  | S144: =IF(S141<>"",HCDIF(S141,S142,S143),"") ->  | T144: =IF(T141<>"",HCDIF(T141,T142,T143),"") ->  | U144: =IF(U141<>"",HCDIF(U141,U142,U143),"") ->  | V144: =IF(V141<>"",HCDIF(V141,V142,V143),"") ->  | W144: =IF(W141<>"",HCDIF(W141,W142,W143),"") ->  | X144: INDEX: | Y144: =IF(Y143<>"",HDIND(Y143),"") -> 
C145: WON: | X145: TOTAL: | Y145: =IF(D145<>"",SUM(D145:W145),"") -> 
B146: =IF('SCORE CENTER'!A42<>"",'SCORE CENTER'!A42,"") ->  | C146: SCORE: | X146: COUNT: | Y146: =COUNT(D146:W146) -> 0
C147: RATING: | X147: - | Y147: -
C148: SLOPE: | X148: HDAVG: | Y148: =IF(D146<>"",Hdavg(D149:W149,Y146),"") -> 
C149: DIFF: | D149: =IF(D146<>"",HCDIF(D146,D147,D148),"") ->  | E149: =IF(E146<>"",HCDIF(E146,E147,E148),"") ->  | F149: =IF(F146<>"",HCDIF(F146,F147,F148),"") ->  | G149: =IF(G146<>"",HCDIF(G146,G147,G148),"") ->  | H149: =IF(H146<>"",HCDIF(H146,H147,H148),"") ->  | I149: =IF(I146<>"",HCDIF(I146,I147,I148),"") ->  | J149: =IF(J146<>"",HCDIF(J146,J147,J148),"") ->  | K149: =IF(K146<>"",HCDIF(K146,K147,K148),"") ->  | L149: =IF(L146<>"",HCDIF(L146,L147,L148),"") ->  | M149: =IF(M146<>"",HCDIF(M146,M147,M148),"") ->  | N149: =IF(N146<>"",HCDIF(N146,N147,N148),"") ->  | O149: =IF(O146<>"",HCDIF(O146,O147,O148),"") ->  | P149: =IF(P146<>"",HCDIF(P146,P147,P148),"") ->  | Q149: =IF(Q146<>"",HCDIF(Q146,Q147,Q148),"") ->  | R149: =IF(R146<>"",HCDIF(R146,R147,R148),"") ->  | S149: =IF(S146<>"",HCDIF(S146,S147,S148),"") ->  | T149: =IF(T146<>"",HCDIF(T146,T147,T148),"") ->  | U149: =IF(U146<>"",HCDIF(U146,U147,U148),"") ->  | V149: =IF(V146<>"",HCDIF(V146,V147,V148),"") ->  | W149: =IF(W146<>"",HCDIF(W146,W147,W148),"") ->  | X149: INDEX: | Y149: =IF(Y148<>"",HDIND(Y148),"") -> 
C150: WON: | X150: TOTAL: | Y150: =IF(D150<>"",SUM(D150:W150),"") -> 
B151: =IF('SCORE CENTER'!A43<>"",'SCORE CENTER'!A43,"") ->  | C151: SCORE: | X151: COUNT: | Y151: =COUNT(D151:W151) -> 0
C152: RATING: | X152: - | Y152: -
C153: SLOPE: | X153: HDAVG: | Y153: =IF(D151<>"",Hdavg(D154:W154,Y151),"") -> 
C154: DIFF: | D154: =IF(D151<>"",HCDIF(D151,D152,D153),"") ->  | E154: =IF(E151<>"",HCDIF(E151,E152,E153),"") ->  | F154: =IF(F151<>"",HCDIF(F151,F152,F153),"") ->  | G154: =IF(G151<>"",HCDIF(G151,G152,G153),"") ->  | H154: =IF(H151<>"",HCDIF(H151,H152,H153),"") ->  | I154: =IF(I151<>"",HCDIF(I151,I152,I153),"") ->  | J154: =IF(J151<>"",HCDIF(J151,J152,J153),"") ->  | K154: =IF(K151<>"",HCDIF(K151,K152,K153),"") ->  | L154: =IF(L151<>"",HCDIF(L151,L152,L153),"") ->  | M154: =IF(M151<>"",HCDIF(M151,M152,M153),"") ->  | N154: =IF(N151<>"",HCDIF(N151,N152,N153),"") ->  | O154: =IF(O151<>"",HCDIF(O151,O152,O153),"") ->  | P154: =IF(P151<>"",HCDIF(P151,P152,P153),"") ->  | Q154: =IF(Q151<>"",HCDIF(Q151,Q152,Q153),"") ->  | R154: =IF(R151<>"",HCDIF(R151,R152,R153),"") ->  | S154: =IF(S151<>"",HCDIF(S151,S152,S153),"") ->  | T154: =IF(T151<>"",HCDIF(T151,T152,T153),"") ->  | U154: =IF(U151<>"",HCDIF(U151,U152,U153),"") ->  | V154: =IF(V151<>"",HCDIF(V151,V152,V153),"") ->  | W154: =IF(W151<>"",HCDIF(W151,W152,W153),"") ->  | X154: INDEX: | Y154: =IF(Y153<>"",HDIND(Y153),"") -> 
C155: WON: | X155: TOTAL: | Y155: =IF(D155<>"",SUM(D155:W155),"") -> 
B156: =IF('SCORE CENTER'!A44<>"",'SCORE CENTER'!A44,"") ->  | C156: SCORE: | X156: COUNT: | Y156: =COUNT(D156:W156) -> 0
C157: RATING: | X157: - | Y157: -
C158: SLOPE: | X158: HDAVG: | Y158: =IF(D156<>"",Hdavg(D159:W159,Y156),"") -> 
C159: DIFF: | D159: =IF(D156<>"",HCDIF(D156,D157,D158),"") ->  | E159: =IF(E156<>"",HCDIF(E156,E157,E158),"") ->  | F159: =IF(F156<>"",HCDIF(F156,F157,F158),"") ->  | G159: =IF(G156<>"",HCDIF(G156,G157,G158),"") ->  | H159: =IF(H156<>"",HCDIF(H156,H157,H158),"") ->  | I159: =IF(I156<>"",HCDIF(I156,I157,I158),"") ->  | J159: =IF(J156<>"",HCDIF(J156,J157,J158),"") ->  | K159: =IF(K156<>"",HCDIF(K156,K157,K158),"") ->  | L159: =IF(L156<>"",HCDIF(L156,L157,L158),"") ->  | M159: =IF(M156<>"",HCDIF(M156,M157,M158),"") ->  | N159: =IF(N156<>"",HCDIF(N156,N157,N158),"") ->  | O159: =IF(O156<>"",HCDIF(O156,O157,O158),"") ->  | P159: =IF(P156<>"",HCDIF(P156,P157,P158),"") ->  | Q159: =IF(Q156<>"",HCDIF(Q156,Q157,Q158),"") ->  | R159: =IF(R156<>"",HCDIF(R156,R157,R158),"") ->  | S159: =IF(S156<>"",HCDIF(S156,S157,S158),"") ->  | T159: =IF(T156<>"",HCDIF(T156,T157,T158),"") ->  | U159: =IF(U156<>"",HCDIF(U156,U157,U158),"") ->  | V159: =IF(V156<>"",HCDIF(V156,V157,V158),"") ->  | W159: =IF(W156<>"",HCDIF(W156,W157,W158),"") ->  | X159: INDEX: | Y159: =IF(Y158<>"",HDIND(Y158),"") -> 
C160: WON: | X160: TOTAL: | Y160: =IF(D160<>"",SUM(D160:W160),"") -> 
B161: =IF('SCORE CENTER'!A45<>"",'SCORE CENTER'!A45,"") ->  | C161: SCORE: | X161: COUNT: | Y161: =COUNT(D161:W161) -> 0
C162: RATING: | X162: - | Y162: -
C163: SLOPE: | X163: HDAVG: | Y163: =IF(D161<>"",Hdavg(D164:W164,Y161),"") -> 
C164: DIFF: | D164: =IF(D161<>"",HCDIF(D161,D162,D163),"") ->  | E164: =IF(E161<>"",HCDIF(E161,E162,E163),"") ->  | F164: =IF(F161<>"",HCDIF(F161,F162,F163),"") ->  | G164: =IF(G161<>"",HCDIF(G161,G162,G163),"") ->  | H164: =IF(H161<>"",HCDIF(H161,H162,H163),"") ->  | I164: =IF(I161<>"",HCDIF(I161,I162,I163),"") ->  | J164: =IF(J161<>"",HCDIF(J161,J162,J163),"") ->  | K164: =IF(K161<>"",HCDIF(K161,K162,K163),"") ->  | L164: =IF(L161<>"",HCDIF(L161,L162,L163),"") ->  | M164: =IF(M161<>"",HCDIF(M161,M162,M163),"") ->  | N164: =IF(N161<>"",HCDIF(N161,N162,N163),"") ->  | O164: =IF(O161<>"",HCDIF(O161,O162,O163),"") ->  | P164: =IF(P161<>"",HCDIF(P161,P162,P163),"") ->  | Q164: =IF(Q161<>"",HCDIF(Q161,Q162,Q163),"") ->  | R164: =IF(R161<>"",HCDIF(R161,R162,R163),"") ->  | S164: =IF(S161<>"",HCDIF(S161,S162,S163),"") ->  | T164: =IF(T161<>"",HCDIF(T161,T162,T163),"") ->  | U164: =IF(U161<>"",HCDIF(U161,U162,U163),"") ->  | V164: =IF(V161<>"",HCDIF(V161,V162,V163),"") ->  | W164: =IF(W161<>"",HCDIF(W161,W162,W163),"") ->  | X164: INDEX: | Y164: =IF(Y163<>"",HDIND(Y163),"") -> 
C165: WON: | X165: TOTAL: | Y165: =IF(D165<>"",SUM(D165:W165),"") -> 
B166: =IF('SCORE CENTER'!A46<>"",'SCORE CENTER'!A46,"") ->  | C166: SCORE: | X166: COUNT: | Y166: =COUNT(D166:W166) -> 0
C167: RATING: | X167: - | Y167: -
C168: SLOPE: | X168: HDAVG: | Y168: =IF(D166<>"",Hdavg(D169:W169,Y166),"") -> 
C169: DIFF: | D169: =IF(D166<>"",HCDIF(D166,D167,D168),"") ->  | E169: =IF(E166<>"",HCDIF(E166,E167,E168),"") ->  | F169: =IF(F166<>"",HCDIF(F166,F167,F168),"") ->  | G169: =IF(G166<>"",HCDIF(G166,G167,G168),"") ->  | H169: =IF(H166<>"",HCDIF(H166,H167,H168),"") ->  | I169: =IF(I166<>"",HCDIF(I166,I167,I168),"") ->  | J169: =IF(J166<>"",HCDIF(J166,J167,J168),"") ->  | K169: =IF(K166<>"",HCDIF(K166,K167,K168),"") ->  | L169: =IF(L166<>"",HCDIF(L166,L167,L168),"") ->  | M169: =IF(M166<>"",HCDIF(M166,M167,M168),"") ->  | N169: =IF(N166<>"",HCDIF(N166,N167,N168),"") ->  | O169: =IF(O166<>"",HCDIF(O166,O167,O168),"") ->  | P169: =IF(P166<>"",HCDIF(P166,P167,P168),"") ->  | Q169: =IF(Q166<>"",HCDIF(Q166,Q167,Q168),"") ->  | R169: =IF(R166<>"",HCDIF(R166,R167,R168),"") ->  | S169: =IF(S166<>"",HCDIF(S166,S167,S168),"") ->  | T169: =IF(T166<>"",HCDIF(T166,T167,T168),"") ->  | U169: =IF(U166<>"",HCDIF(U166,U167,U168),"") ->  | V169: =IF(V166<>"",HCDIF(V166,V167,V168),"") ->  | W169: =IF(W166<>"",HCDIF(W166,W167,W168),"") ->  | X169: INDEX: | Y169: =IF(Y168<>"",HDIND(Y168),"") -> 
C170: WON: | X170: TOTAL: | Y170: =IF(D170<>"",SUM(D170:W170),"") -> 
B171: =IF('SCORE CENTER'!A47<>"",'SCORE CENTER'!A47,"") ->  | C171: SCORE: | X171: COUNT: | Y171: =COUNT(D171:W171) -> 0
C172: RATING: | X172: - | Y172: -
C173: SLOPE: | X173: HDAVG: | Y173: =IF(D171<>"",Hdavg(D174:W174,Y171),"") -> 
C174: DIFF: | D174: =IF(D171<>"",HCDIF(D171,D172,D173),"") ->  | E174: =IF(E171<>"",HCDIF(E171,E172,E173),"") ->  | F174: =IF(F171<>"",HCDIF(F171,F172,F173),"") ->  | G174: =IF(G171<>"",HCDIF(G171,G172,G173),"") ->  | H174: =IF(H171<>"",HCDIF(H171,H172,H173),"") ->  | I174: =IF(I171<>"",HCDIF(I171,I172,I173),"") ->  | J174: =IF(J171<>"",HCDIF(J171,J172,J173),"") ->  | K174: =IF(K171<>"",HCDIF(K171,K172,K173),"") ->  | L174: =IF(L171<>"",HCDIF(L171,L172,L173),"") ->  | M174: =IF(M171<>"",HCDIF(M171,M172,M173),"") ->  | N174: =IF(N171<>"",HCDIF(N171,N172,N173),"") ->  | O174: =IF(O171<>"",HCDIF(O171,O172,O173),"") ->  | P174: =IF(P171<>"",HCDIF(P171,P172,P173),"") ->  | Q174: =IF(Q171<>"",HCDIF(Q171,Q172,Q173),"") ->  | R174: =IF(R171<>"",HCDIF(R171,R172,R173),"") ->  | S174: =IF(S171<>"",HCDIF(S171,S172,S173),"") ->  | T174: =IF(T171<>"",HCDIF(T171,T172,T173),"") ->  | U174: =IF(U171<>"",HCDIF(U171,U172,U173),"") ->  | V174: =IF(V171<>"",HCDIF(V171,V172,V173),"") ->  | W174: =IF(W171<>"",HCDIF(W171,W172,W173),"") ->  | X174: INDEX: | Y174: =IF(Y173<>"",HDIND(Y173),"") -> 
C175: WON: | X175: TOTAL: | Y175: =IF(D175<>"",SUM(D175:W175),"") -> 
B176: =IF('SCORE CENTER'!A48<>"",'SCORE CENTER'!A48,"") ->  | C176: SCORE: | X176: COUNT: | Y176: =COUNT(D176:W176) -> 0
C177: RATING: | X177: - | Y177: -
C178: SLOPE: | X178: HDAVG: | Y178: =IF(D176<>"",Hdavg(D179:W179,Y176),"") -> 
C179: DIFF: | D179: =IF(D176<>"",HCDIF(D176,D177,D178),"") ->  | E179: =IF(E176<>"",HCDIF(E176,E177,E178),"") ->  | F179: =IF(F176<>"",HCDIF(F176,F177,F178),"") ->  | G179: =IF(G176<>"",HCDIF(G176,G177,G178),"") ->  | H179: =IF(H176<>"",HCDIF(H176,H177,H178),"") ->  | I179: =IF(I176<>"",HCDIF(I176,I177,I178),"") ->  | J179: =IF(J176<>"",HCDIF(J176,J177,J178),"") ->  | K179: =IF(K176<>"",HCDIF(K176,K177,K178),"") ->  | L179: =IF(L176<>"",HCDIF(L176,L177,L178),"") ->  | M179: =IF(M176<>"",HCDIF(M176,M177,M178),"") ->  | N179: =IF(N176<>"",HCDIF(N176,N177,N178),"") ->  | O179: =IF(O176<>"",HCDIF(O176,O177,O178),"") ->  | P179: =IF(P176<>"",HCDIF(P176,P177,P178),"") ->  | Q179: =IF(Q176<>"",HCDIF(Q176,Q177,Q178),"") ->  | R179: =IF(R176<>"",HCDIF(R176,R177,R178),"") ->  | S179: =IF(S176<>"",HCDIF(S176,S177,S178),"") ->  | T179: =IF(T176<>"",HCDIF(T176,T177,T178),"") ->  | U179: =IF(U176<>"",HCDIF(U176,U177,U178),"") ->  | V179: =IF(V176<>"",HCDIF(V176,V177,V178),"") ->  | W179: =IF(W176<>"",HCDIF(W176,W177,W178),"") ->  | X179: INDEX: | Y179: =IF(Y178<>"",HDIND(Y178),"") -> 
C180: WON: | X180: TOTAL: | Y180: =IF(D180<>"",SUM(D180:W180),"") -> 
B181: =IF('SCORE CENTER'!A49<>"",'SCORE CENTER'!A49,"") ->  | C181: SCORE: | X181: COUNT: | Y181: =COUNT(D181:W181) -> 0
C182: RATING: | X182: - | Y182: -
C183: SLOPE: | X183: HDAVG: | Y183: =IF(D181<>"",Hdavg(D184:W184,Y181),"") -> 
C184: DIFF: | D184: =IF(D181<>"",HCDIF(D181,D182,D183),"") ->  | E184: =IF(E181<>"",HCDIF(E181,E182,E183),"") ->  | F184: =IF(F181<>"",HCDIF(F181,F182,F183),"") ->  | G184: =IF(G181<>"",HCDIF(G181,G182,G183),"") ->  | H184: =IF(H181<>"",HCDIF(H181,H182,H183),"") ->  | I184: =IF(I181<>"",HCDIF(I181,I182,I183),"") ->  | J184: =IF(J181<>"",HCDIF(J181,J182,J183),"") ->  | K184: =IF(K181<>"",HCDIF(K181,K182,K183),"") ->  | L184: =IF(L181<>"",HCDIF(L181,L182,L183),"") ->  | M184: =IF(M181<>"",HCDIF(M181,M182,M183),"") ->  | N184: =IF(N181<>"",HCDIF(N181,N182,N183),"") ->  | O184: =IF(O181<>"",HCDIF(O181,O182,O183),"") ->  | P184: =IF(P181<>"",HCDIF(P181,P182,P183),"") ->  | Q184: =IF(Q181<>"",HCDIF(Q181,Q182,Q183),"") ->  | R184: =IF(R181<>"",HCDIF(R181,R182,R183),"") ->  | S184: =IF(S181<>"",HCDIF(S181,S182,S183),"") ->  | T184: =IF(T181<>"",HCDIF(T181,T182,T183),"") ->  | U184: =IF(U181<>"",HCDIF(U181,U182,U183),"") ->  | V184: =IF(V181<>"",HCDIF(V181,V182,V183),"") ->  | W184: =IF(W181<>"",HCDIF(W181,W182,W183),"") ->  | X184: INDEX: | Y184: =IF(Y183<>"",HDIND(Y183),"") -> 
C185: WON: | X185: TOTAL: | Y185: =IF(D185<>"",SUM(D185:W185),"") -> 
B186: =IF('SCORE CENTER'!A50<>"",'SCORE CENTER'!A50,"") ->  | C186: SCORE: | X186: COUNT: | Y186: =COUNT(D186:W186) -> 0
C187: RATING: | X187: - | Y187: -
C188: SLOPE: | X188: HDAVG: | Y188: =IF(D186<>"",Hdavg(D189:W189,Y186),"") -> 
C189: DIFF: | D189: =IF(D186<>"",HCDIF(D186,D187,D188),"") ->  | E189: =IF(E186<>"",HCDIF(E186,E187,E188),"") ->  | F189: =IF(F186<>"",HCDIF(F186,F187,F188),"") ->  | G189: =IF(G186<>"",HCDIF(G186,G187,G188),"") ->  | H189: =IF(H186<>"",HCDIF(H186,H187,H188),"") ->  | I189: =IF(I186<>"",HCDIF(I186,I187,I188),"") ->  | J189: =IF(J186<>"",HCDIF(J186,J187,J188),"") ->  | K189: =IF(K186<>"",HCDIF(K186,K187,K188),"") ->  | L189: =IF(L186<>"",HCDIF(L186,L187,L188),"") ->  | M189: =IF(M186<>"",HCDIF(M186,M187,M188),"") ->  | N189: =IF(N186<>"",HCDIF(N186,N187,N188),"") ->  | O189: =IF(O186<>"",HCDIF(O186,O187,O188),"") ->  | P189: =IF(P186<>"",HCDIF(P186,P187,P188),"") ->  | Q189: =IF(Q186<>"",HCDIF(Q186,Q187,Q188),"") ->  | R189: =IF(R186<>"",HCDIF(R186,R187,R188),"") ->  | S189: =IF(S186<>"",HCDIF(S186,S187,S188),"") ->  | T189: =IF(T186<>"",HCDIF(T186,T187,T188),"") ->  | U189: =IF(U186<>"",HCDIF(U186,U187,U188),"") ->  | V189: =IF(V186<>"",HCDIF(V186,V187,V188),"") ->  | W189: =IF(W186<>"",HCDIF(W186,W187,W188),"") ->  | X189: INDEX: | Y189: =IF(Y188<>"",HDIND(Y188),"") -> 
C190: WON: | X190: TOTAL: | Y190: =IF(D190<>"",SUM(D190:W190),"") -> 
B191: =IF('SCORE CENTER'!A51<>"",'SCORE CENTER'!A51,"") ->  | C191: SCORE: | X191: COUNT: | Y191: =COUNT(D191:W191) -> 0
C192: RATING: | X192: - | Y192: -
C193: SLOPE: | X193: HDAVG: | Y193: =IF(D191<>"",Hdavg(D194:W194,Y191),"") -> 
C194: DIFF: | D194: =IF(D191<>"",HCDIF(D191,D192,D193),"") ->  | E194: =IF(E191<>"",HCDIF(E191,E192,E193),"") ->  | F194: =IF(F191<>"",HCDIF(F191,F192,F193),"") ->  | G194: =IF(G191<>"",HCDIF(G191,G192,G193),"") ->  | H194: =IF(H191<>"",HCDIF(H191,H192,H193),"") ->  | I194: =IF(I191<>"",HCDIF(I191,I192,I193),"") ->  | J194: =IF(J191<>"",HCDIF(J191,J192,J193),"") ->  | K194: =IF(K191<>"",HCDIF(K191,K192,K193),"") ->  | L194: =IF(L191<>"",HCDIF(L191,L192,L193),"") ->  | M194: =IF(M191<>"",HCDIF(M191,M192,M193),"") ->  | N194: =IF(N191<>"",HCDIF(N191,N192,N193),"") ->  | O194: =IF(O191<>"",HCDIF(O191,O192,O193),"") ->  | P194: =IF(P191<>"",HCDIF(P191,P192,P193),"") ->  | Q194: =IF(Q191<>"",HCDIF(Q191,Q192,Q193),"") ->  | R194: =IF(R191<>"",HCDIF(R191,R192,R193),"") ->  | S194: =IF(S191<>"",HCDIF(S191,S192,S193),"") ->  | T194: =IF(T191<>"",HCDIF(T191,T192,T193),"") ->  | U194: =IF(U191<>"",HCDIF(U191,U192,U193),"") ->  | V194: =IF(V191<>"",HCDIF(V191,V192,V193),"") ->  | W194: =IF(W191<>"",HCDIF(W191,W192,W193),"") ->  | X194: INDEX: | Y194: =IF(Y193<>"",HDIND(Y193),"") -> 
C195: WON: | X195: TOTAL: | Y195: =IF(D195<>"",SUM(D195:W195),"") -> 
B196: =IF('SCORE CENTER'!A52<>"",'SCORE CENTER'!A52,"") ->  | C196: SCORE: | X196: COUNT: | Y196: =COUNT(D196:W196) -> 0
C197: RATING: | X197: - | Y197: -
C198: SLOPE: | X198: HDAVG: | Y198: =IF(D196<>"",Hdavg(D199:W199,Y196),"") -> 
C199: DIFF: | D199: =IF(D196<>"",HCDIF(D196,D197,D198),"") ->  | E199: =IF(E196<>"",HCDIF(E196,E197,E198),"") ->  | F199: =IF(F196<>"",HCDIF(F196,F197,F198),"") ->  | G199: =IF(G196<>"",HCDIF(G196,G197,G198),"") ->  | H199: =IF(H196<>"",HCDIF(H196,H197,H198),"") ->  | I199: =IF(I196<>"",HCDIF(I196,I197,I198),"") ->  | J199: =IF(J196<>"",HCDIF(J196,J197,J198),"") ->  | K199: =IF(K196<>"",HCDIF(K196,K197,K198),"") ->  | L199: =IF(L196<>"",HCDIF(L196,L197,L198),"") ->  | M199: =IF(M196<>"",HCDIF(M196,M197,M198),"") ->  | N199: =IF(N196<>"",HCDIF(N196,N197,N198),"") ->  | O199: =IF(O196<>"",HCDIF(O196,O197,O198),"") ->  | P199: =IF(P196<>"",HCDIF(P196,P197,P198),"") ->  | Q199: =IF(Q196<>"",HCDIF(Q196,Q197,Q198),"") ->  | R199: =IF(R196<>"",HCDIF(R196,R197,R198),"") ->  | S199: =IF(S196<>"",HCDIF(S196,S197,S198),"") ->  | T199: =IF(T196<>"",HCDIF(T196,T197,T198),"") ->  | U199: =IF(U196<>"",HCDIF(U196,U197,U198),"") ->  | V199: =IF(V196<>"",HCDIF(V196,V197,V198),"") ->  | W199: =IF(W196<>"",HCDIF(W196,W197,W198),"") ->  | X199: INDEX: | Y199: =IF(Y198<>"",HDIND(Y198),"") -> 
C200: WON: | X200: TOTAL: | Y200: =IF(D200<>"",SUM(D200:W200),"") -> 
B201: =IF('SCORE CENTER'!A53<>"",'SCORE CENTER'!A53,"") ->  | C201: SCORE: | X201: COUNT: | Y201: =COUNT(D201:W201) -> 0
C202: RATING: | X202: - | Y202: -
C203: SLOPE: | X203: HDAVG: | Y203: =IF(D201<>"",Hdavg(D204:W204,Y201),"") -> 
C204: DIFF: | D204: =IF(D201<>"",HCDIF(D201,D202,D203),"") ->  | E204: =IF(E201<>"",HCDIF(E201,E202,E203),"") ->  | F204: =IF(F201<>"",HCDIF(F201,F202,F203),"") ->  | G204: =IF(G201<>"",HCDIF(G201,G202,G203),"") ->  | H204: =IF(H201<>"",HCDIF(H201,H202,H203),"") ->  | I204: =IF(I201<>"",HCDIF(I201,I202,I203),"") ->  | J204: =IF(J201<>"",HCDIF(J201,J202,J203),"") ->  | K204: =IF(K201<>"",HCDIF(K201,K202,K203),"") ->  | L204: =IF(L201<>"",HCDIF(L201,L202,L203),"") ->  | M204: =IF(M201<>"",HCDIF(M201,M202,M203),"") ->  | N204: =IF(N201<>"",HCDIF(N201,N202,N203),"") ->  | O204: =IF(O201<>"",HCDIF(O201,O202,O203),"") ->  | P204: =IF(P201<>"",HCDIF(P201,P202,P203),"") ->  | Q204: =IF(Q201<>"",HCDIF(Q201,Q202,Q203),"") ->  | R204: =IF(R201<>"",HCDIF(R201,R202,R203),"") ->  | S204: =IF(S201<>"",HCDIF(S201,S202,S203),"") ->  | T204: =IF(T201<>"",HCDIF(T201,T202,T203),"") ->  | U204: =IF(U201<>"",HCDIF(U201,U202,U203),"") ->  | V204: =IF(V201<>"",HCDIF(V201,V202,V203),"") ->  | W204: =IF(W201<>"",HCDIF(W201,W202,W203),"") ->  | X204: INDEX: | Y204: =IF(Y203<>"",HDIND(Y203),"") -> 
C205: WON: | X205: TOTAL: | Y205: =IF(D205<>"",SUM(D205:W205),"") -> 
B206: =IF('SCORE CENTER'!A54<>"",'SCORE CENTER'!A54,"") ->  | C206: SCORE: | X206: COUNT: | Y206: =COUNT(D206:W206) -> 0
C207: RATING: | X207: - | Y207: -
C208: SLOPE: | X208: HDAVG: | Y208: =IF(D206<>"",Hdavg(D209:W209,Y206),"") -> 
C209: DIFF: | D209: =IF(D206<>"",HCDIF(D206,D207,D208),"") ->  | E209: =IF(E206<>"",HCDIF(E206,E207,E208),"") ->  | F209: =IF(F206<>"",HCDIF(F206,F207,F208),"") ->  | G209: =IF(G206<>"",HCDIF(G206,G207,G208),"") ->  | H209: =IF(H206<>"",HCDIF(H206,H207,H208),"") ->  | I209: =IF(I206<>"",HCDIF(I206,I207,I208),"") ->  | J209: =IF(J206<>"",HCDIF(J206,J207,J208),"") ->  | K209: =IF(K206<>"",HCDIF(K206,K207,K208),"") ->  | L209: =IF(L206<>"",HCDIF(L206,L207,L208),"") ->  | M209: =IF(M206<>"",HCDIF(M206,M207,M208),"") ->  | N209: =IF(N206<>"",HCDIF(N206,N207,N208),"") ->  | O209: =IF(O206<>"",HCDIF(O206,O207,O208),"") ->  | P209: =IF(P206<>"",HCDIF(P206,P207,P208),"") ->  | Q209: =IF(Q206<>"",HCDIF(Q206,Q207,Q208),"") ->  | R209: =IF(R206<>"",HCDIF(R206,R207,R208),"") ->  | S209: =IF(S206<>"",HCDIF(S206,S207,S208),"") ->  | T209: =IF(T206<>"",HCDIF(T206,T207,T208),"") ->  | U209: =IF(U206<>"",HCDIF(U206,U207,U208),"") ->  | V209: =IF(V206<>"",HCDIF(V206,V207,V208),"") ->  | W209: =IF(W206<>"",HCDIF(W206,W207,W208),"") ->  | X209: INDEX: | Y209: =IF(Y208<>"",HDIND(Y208),"") -> 
C210: WON: | X210: TOTAL: | Y210: =IF(D210<>"",SUM(D210:W210),"") -> 
B211: =IF('SCORE CENTER'!A55<>"",'SCORE CENTER'!A55,"") ->  | C211: SCORE: | X211: COUNT: | Y211: =COUNT(D211:W211) -> 0
C212: RATING: | X212: - | Y212: -
C213: SLOPE: | X213: HDAVG: | Y213: =IF(D211<>"",Hdavg(D214:W214,Y211),"") -> 
C214: DIFF: | D214: =IF(D211<>"",HCDIF(D211,D212,D213),"") ->  | E214: =IF(E211<>"",HCDIF(E211,E212,E213),"") ->  | F214: =IF(F211<>"",HCDIF(F211,F212,F213),"") ->  | G214: =IF(G211<>"",HCDIF(G211,G212,G213),"") ->  | H214: =IF(H211<>"",HCDIF(H211,H212,H213),"") ->  | I214: =IF(I211<>"",HCDIF(I211,I212,I213),"") ->  | J214: =IF(J211<>"",HCDIF(J211,J212,J213),"") ->  | K214: =IF(K211<>"",HCDIF(K211,K212,K213),"") ->  | L214: =IF(L211<>"",HCDIF(L211,L212,L213),"") ->  | M214: =IF(M211<>"",HCDIF(M211,M212,M213),"") ->  | N214: =IF(N211<>"",HCDIF(N211,N212,N213),"") ->  | O214: =IF(O211<>"",HCDIF(O211,O212,O213),"") ->  | P214: =IF(P211<>"",HCDIF(P211,P212,P213),"") ->  | Q214: =IF(Q211<>"",HCDIF(Q211,Q212,Q213),"") ->  | R214: =IF(R211<>"",HCDIF(R211,R212,R213),"") ->  | S214: =IF(S211<>"",HCDIF(S211,S212,S213),"") ->  | T214: =IF(T211<>"",HCDIF(T211,T212,T213),"") ->  | U214: =IF(U211<>"",HCDIF(U211,U212,U213),"") ->  | V214: =IF(V211<>"",HCDIF(V211,V212,V213),"") ->  | W214: =IF(W211<>"",HCDIF(W211,W212,W213),"") ->  | X214: INDEX: | Y214: =IF(Y213<>"",HDIND(Y213),"") -> 
C215: WON: | X215: TOTAL: | Y215: =IF(D215<>"",SUM(D215:W215),"") -> 
B216: =IF('SCORE CENTER'!A56<>"",'SCORE CENTER'!A56,"") ->  | C216: SCORE: | X216: COUNT: | Y216: =COUNT(D216:W216) -> 0
... 59 more rows
